Department family,Entity,Date,Expense type,Expense area,Supplier,Transaction number,Amount,VAT registration number
Department for Business Energy and Industrial Strategy,Intellectual Property Office,07/04/2022,Supporting UK Business,Innovation Directorate,Crover Ltd,IPACC0030,"4,500.00",Not Applicable
Department for Business Energy and Industrial Strategy,Intellectual Property Office,05/04/2022,Supporting UK Business,Innovation Directorate,In4Derm Limited,IPACC0031,"4,254.00",Not Applicable
Department for Business Energy and Industrial Strategy,Intellectual Property Office,19/04/2022,Supporting UK Business,Innovation Directorate,Upgrade Technology Engineering Ltd,IPACC0032,"4,000.00",Not Applicable
Department for Business Energy and Industrial Strategy,Intellectual Property Office,19/04/2022,Supporting UK Business,Innovation Directorate,Enviro365 Limited,IPACC0033,"1,500.00",Not Applicable
Department for Business Energy and Industrial Strategy,Intellectual Property Office,19/04/2022,Supporting UK Business,Innovation Directorate,Spark EV Technology Limited,IPACC0034,"5,000.00",Not Applicable
Department for Business Energy and Industrial Strategy,Intellectual Property Office,26/04/2022,Supporting UK Business,Innovation Directorate,Stocker Partnership Ltd,IPACC0035,"2,017.50",Not Applicable
Department for Business Energy and Industrial Strategy,Intellectual Property Office,08/04/2022,Supporting UK Business,Innovation Directorate,Briffa Legal Ltd,17552,"1,170.00",Not Applicable
Department for Business Energy and Industrial Strategy,Intellectual Property Office,11/04/2022,Supporting UK Business,Innovation Directorate,Briffa Legal Ltd,18005,720.00,Not Applicable
Department for Business Energy and Industrial Strategy,Intellectual Property Office,11/04/2022,Supporting UK Business,Innovation Directorate,Briffa Legal Ltd,18010,"1,250.40",Not Applicable
Department for Business Energy and Industrial Strategy,Intellectual Property Office,11/04/2022,Supporting UK Business,Innovation Directorate,Briffa Legal Ltd,18090,"1,140.00",Not Applicable
Department for Business Energy and Industrial Strategy,Intellectual Property Office,04/04/2022,Pay Costs,Patent Directorate,Acorn Recruitment Ltd,1001124,864.64,Not Applicable
Department for Business Energy and Industrial Strategy,Intellectual Property Office,08/04/2022,Pay Costs,Patent Directorate,Acorn Recruitment Ltd,1001592,693.08,Not Applicable
Department for Business Energy and Industrial Strategy,Intellectual Property Office,19/04/2022,Pay Costs,Patent Directorate,Acorn Recruitment Ltd,1002122,908.12,Not Applicable
Department for Business Energy and Industrial Strategy,Intellectual Property Office,28/04/2022,Pay Costs,Patent Directorate,Acorn Recruitment Ltd,1002589,675.23,Not Applicable
Department for Business Energy and Industrial Strategy,Intellectual Property Office,28/04/2022,Pay Costs,Patent Directorate,Acorn Recruitment Ltd,1003060,797.18,Not Applicable
Department for Business Energy and Industrial Strategy,Intellectual Property Office,05/04/2022,Office Supplies,People Places & Serv Directorate,Banner Group Limited,8051394A,549.20,Not Applicable
Department for Business Energy and Industrial Strategy,Intellectual Property Office,01/04/2022,Telecoms,IT Directorate,British  Telecom,04842270AC01Q101,"5,363.19",Not Applicable
Department for Business Energy and Industrial Strategy,Intellectual Property Office,05/04/2022,Office Supplies,Patent Directorate,British Library,7000310231,"1,672.44",Not Applicable
Department for Business Energy and Industrial Strategy,Intellectual Property Office,08/04/2022,Information Technology,People Places & Serv Directorate,British Standards Institution BSI,400777257,"1,345.20",Not Applicable
Department for Business Energy and Industrial Strategy,Intellectual Property Office,04/04/2022,Miscellaneous Expenses General,Patent Directorate,British Standards Institution BSI,400777258,514.80,Not Applicable
Department for Business Energy and Industrial Strategy,Intellectual Property Office,08/04/2022,Staff Costs,People Places & Serv Directorate,British Standards Institution BSI,400777260,688.80,Not Applicable
Department for Business Energy and Industrial Strategy,Intellectual Property Office,21/04/2022,Miscellaneous Expenses General,People Places & Serv Directorate,British Standards Institution BSI,96005169,"3,648.00",Not Applicable
Department for Business Energy and Industrial Strategy,Intellectual Property Office,19/04/2022,Miscellaneous Expenses General,People Places & Serv Directorate,Cabinet Office,3817546,"22,585.08",Not Applicable
Department for Business Energy and Industrial Strategy,Intellectual Property Office,13/04/2022,Miscellaneous Expenses General,People Places & Serv Directorate,Capital Law LLP,70000838,"1,179.00",Not Applicable
Department for Business Energy and Industrial Strategy,Intellectual Property Office,11/04/2022,Staff Costs,People Places & Serv Directorate,Computeraid Ltd,22617,"7,632.00",Not Applicable
Department for Business Energy and Industrial Strategy,Intellectual Property Office,11/04/2022,Supporting UK Business,Innovation Directorate,Dehns,1018951,"5,000.00",Not Applicable
Department for Business Energy and Industrial Strategy,Intellectual Property Office,11/04/2022,Supporting UK Business,Innovation Directorate,Dehns,475336,"4,760.40",Not Applicable
Department for Business Energy and Industrial Strategy,Intellectual Property Office,05/04/2022,Postage & Delivery Costs,People Places & Serv Directorate,DHL International (UK) Ltd,BRSR005739669,"2,654.26",Not Applicable
Department for Business Energy and Industrial Strategy,Intellectual Property Office,20/04/2022,Postage & Delivery Costs,People Places & Serv Directorate,DHL International (UK) Ltd,BRSR005776860,"1,293.39",Not Applicable
Department for Business Energy and Industrial Strategy,Intellectual Property Office,20/04/2022,Postage & Delivery Costs,People Places & Serv Directorate,DHL International (UK) Ltd,BRSR005798948,"3,739.21",Not Applicable
Department for Business Energy and Industrial Strategy,Intellectual Property Office,28/04/2022,Postage & Delivery Costs,People Places & Serv Directorate,DHL International (UK) Ltd,BRSR005820756,"3,650.85",Not Applicable
Department for Business Energy and Industrial Strategy,Intellectual Property Office,25/04/2022,Pay Costs,Projects,Hays Specialist Recruitment,1012045941,"5,989.02",Not Applicable
Department for Business Energy and Industrial Strategy,Intellectual Property Office,25/04/2022,Pay Costs,Projects,Hays Specialist Recruitment,1012071913,"5,989.02",Not Applicable
Department for Business Energy and Industrial Strategy,Intellectual Property Office,25/04/2022,Pay Costs,Projects,Hays Specialist Recruitment,1012082232,"5,989.02",Not Applicable
Department for Business Energy and Industrial Strategy,Intellectual Property Office,14/04/2022,Pay Costs,Finance Directorate,Hays Specialist Recruitment,1012093435,"3,541.26",Not Applicable
Department for Business Energy and Industrial Strategy,Intellectual Property Office,14/04/2022,Pay Costs,Finance Directorate,Hays Specialist Recruitment,1012112020,"3,570.06",Not Applicable
Department for Business Energy and Industrial Strategy,Intellectual Property Office,20/04/2022,Pay Costs,Finance Directorate,Hays Specialist Recruitment,1012116810,"3,570.06",Not Applicable
Department for Business Energy and Industrial Strategy,Intellectual Property Office,25/04/2022,Pay Costs,Projects,Hays Specialist Recruitment,1012121149,"6,044.70",Not Applicable
Department for Business Energy and Industrial Strategy,Intellectual Property Office,25/04/2022,Pay Costs,Projects,Hays Specialist Recruitment,1012121150,"4,835.76",Not Applicable
Department for Business Energy and Industrial Strategy,Intellectual Property Office,25/04/2022,Pay Costs,Finance Directorate,Hays Specialist Recruitment,1012131384,714.01,Not Applicable
Department for Business Energy and Industrial Strategy,Intellectual Property Office,25/04/2022,Pay Costs,Projects,Hays Specialist Recruitment,1012133702,"4,835.76",Not Applicable
Department for Business Energy and Industrial Strategy,Intellectual Property Office,28/04/2022,Pay Costs,Copyright and Enforcement Directorate,Home  Office,2602145,"4,100.48",Not Applicable
Department for Business Energy and Industrial Strategy,Intellectual Property Office,28/04/2022,Pay Costs,Copyright and Enforcement Directorate,Home  Office,2602146,"5,837.91",Not Applicable
Department for Business Energy and Industrial Strategy,Intellectual Property Office,01/04/2022,Legal & Hearings,Trade Mark Directorate,Marten Walsh Cherer Ltd,121217,"4,626.88",Not Applicable
Department for Business Energy and Industrial Strategy,Intellectual Property Office,04/04/2022,Legal & Hearings,Trade Mark Directorate,Marten Walsh Cherer Ltd,121218,"1,314.90",Not Applicable
Department for Business Energy and Industrial Strategy,Intellectual Property Office,05/04/2022,Legal & Hearings,Trade Mark Directorate,Marten Walsh Cherer Ltd,121219,"1,496.88",Not Applicable
Department for Business Energy and Industrial Strategy,Intellectual Property Office,01/04/2022,Legal & Hearings,Trade Mark Directorate,Marten Walsh Cherer Ltd,121222,"5,537.69",Not Applicable
Department for Business Energy and Industrial Strategy,Intellectual Property Office,05/04/2022,Legal & Hearings,Trade Mark Directorate,Marten Walsh Cherer Ltd,121223,"2,725.69",Not Applicable
Department for Business Energy and Industrial Strategy,Intellectual Property Office,22/04/2022,Legal & Hearings,Trade Mark Directorate,Marten Walsh Cherer Ltd,121601,"1,453.56",Not Applicable
Department for Business Energy and Industrial Strategy,Intellectual Property Office,22/04/2022,Legal & Hearings,Trade Mark Directorate,Marten Walsh Cherer Ltd,121610,557.52,Not Applicable
Department for Business Energy and Industrial Strategy,Intellectual Property Office,26/04/2022,Pay Costs,Projects,Michael Page International Recruitment L,6814983,"3,340.80",Not Applicable
Department for Business Energy and Industrial Strategy,Intellectual Property Office,05/04/2022,Miscellaneous Expenses General,Patent Directorate,Ministry of Defence,7686229,"1,172.53",Not Applicable
Department for Business Energy and Industrial Strategy,Intellectual Property Office,25/04/2022,Postage & Delivery Costs,People Places & Serv Directorate,Quadient UK Limited,NE9000336-APR22,"10,000.00",Not Applicable
Department for Business Energy and Industrial Strategy,Intellectual Property Office,08/04/2022,Accommodation,People Places & Serv Directorate,Office for National Statistics,2801087,"28,278.00",Not Applicable
Department for Business Energy and Industrial Strategy,Intellectual Property Office,25/04/2022,Staff Costs,People Places & Serv Directorate,Office for National Statistics,2803092,600.00,Not Applicable
Department for Business Energy and Industrial Strategy,Intellectual Property Office,01/04/2022,Information Technology,IT Directorate,Phoenix Software Ltd,OP/C032128,"-895,785.06",Not Applicable
Department for Business Energy and Industrial Strategy,Intellectual Property Office,01/04/2022,Information Technology,IT Directorate,Phoenix Software Ltd,OP/I926540,"895,785.06",Not Applicable
Department for Business Energy and Industrial Strategy,Intellectual Property Office,04/04/2022,Information Technology,IT Directorate,Phoenix Software Ltd,OP/I926682,"895,785.06",Not Applicable
Department for Business Energy and Industrial Strategy,Intellectual Property Office,19/04/2022,Information Technology,IT Directorate,Phoenix Software Ltd,OP/I927969,"46,896.00",Not Applicable
Department for Business Energy and Industrial Strategy,Intellectual Property Office,21/04/2022,Information Technology,IT Directorate,Phoenix Software Ltd,OP/I928497,"43,470.34",Not Applicable
Department for Business Energy and Industrial Strategy,Intellectual Property Office,25/04/2022,Supporting UK Business,Copyright and Enforcement Directorate,Phoenix Software Ltd,OP/I928868,"16,853.77",Not Applicable
Department for Business Energy and Industrial Strategy,Intellectual Property Office,29/04/2022,Information Technology,Projects,Phoenix Software Ltd,OP/I929120,"33,139.08",Not Applicable
Department for Business Energy and Industrial Strategy,Intellectual Property Office,05/04/2022,Supporting UK Business,Innovation Directorate,Potter Clarkson LLP,997744,"2,500.00",Not Applicable
Department for Business Energy and Industrial Strategy,Intellectual Property Office,29/04/2022,Staff Costs,IT Directorate,QA Ltd,QA-SIN-000135204,"18,000.00",Not Applicable
Department for Business Energy and Industrial Strategy,Intellectual Property Office,06/04/2022,Postage & Delivery Costs,People Places & Serv Directorate,Royal Mail,9064730477,"1,214.08",Not Applicable
Department for Business Energy and Industrial Strategy,Intellectual Property Office,28/04/2022,Postage & Delivery Costs,People Places & Serv Directorate,Royal Mail,9064808907,"1,814.60",Not Applicable
Department for Business Energy and Industrial Strategy,Intellectual Property Office,28/04/2022,Postage & Delivery Costs,People Places & Serv Directorate,Royal Mail,9064875970,"1,543.93",Not Applicable
Department for Business Energy and Industrial Strategy,Intellectual Property Office,14/04/2022,Information Technology,IT Directorate,Softcat Ltd,INV03399314,"116,665.15",Not Applicable
Department for Business Energy and Industrial Strategy,Intellectual Property Office,27/04/2022,Information Technology,IT Directorate,Specialist Computer Centres Plc,OP/N150078,962.51,Not Applicable
Department for Business Energy and Industrial Strategy,Intellectual Property Office,27/04/2022,Information Technology,IT Directorate,Specialist Computer Centres Plc,OP/N152809,"11,463.36",Not Applicable
Department for Business Energy and Industrial Strategy,Intellectual Property Office,27/04/2022,Information Technology,IT Directorate,Specialist Computer Centres Plc,OP/N152810,"12,345.14",Not Applicable
Department for Business Energy and Industrial Strategy,Intellectual Property Office,25/04/2022,Accommodation,People Places & Serv Directorate,Total Security Protection Ltd,41355,"1,680.00",Not Applicable
Department for Business Energy and Industrial Strategy,Intellectual Property Office,07/04/2022,Supporting UK Business,Copyright and Enforcement Directorate,NTSB c/o Trading Standards Institute,NTSB/LC/0122-21,"2,212.50",Not Applicable
Department for Business Energy and Industrial Strategy,Intellectual Property Office,05/04/2022,Information Technology,IT Directorate,Trustmarque Solutions Ltd,2338292,"2,548.20",Not Applicable
Department for Business Energy and Industrial Strategy,Intellectual Property Office,01/04/2022,Staff Costs,People Places & Serv Directorate,University of  South Wales,INV0001584,810.00,Not Applicable
Department for Business Energy and Industrial Strategy,Intellectual Property Office,29/04/2022,Supporting UK Business,Innovation Directorate,Withers &  Rogers LLP,6835657,"5,000.00",Not Applicable
Department for Business Energy and Industrial Strategy,Intellectual Property Office,12/04/2022,Supporting UK Business,Innovation Directorate,Withers &  Rogers LLP,6839409,"5,000.00",Not Applicable
Department for Business Energy and Industrial Strategy,Intellectual Property Office,06/04/2022,Office Supplies,People Places & Serv Directorate,Antalis UK Ltd,2308429,"13,404.19",Not Applicable
Department for Business Energy and Industrial Strategy,Intellectual Property Office,27/04/2022,Information Technology,IT Directorate,CDW Limited,PSINV03538991,"124,800.00",Not Applicable
Department for Business Energy and Industrial Strategy,Intellectual Property Office,19/04/2022,Supporting UK Business,Innovation Directorate,Marks & Clerk LLP,5264317,"5,000.00",Not Applicable
Department for Business Energy and Industrial Strategy,Intellectual Property Office,29/04/2022,Supporting UK Business,Innovation Directorate,Marks & Clerk LLP,5265556,"5,000.00",Not Applicable
Department for Business Energy and Industrial Strategy,Intellectual Property Office,26/04/2022,Supporting UK Business,Innovation Directorate,Mewburn  Ellis LLP,227129,"2,500.00",Not Applicable
Department for Business Energy and Industrial Strategy,Intellectual Property Office,19/04/2022,Supporting UK Business,Innovation Directorate,Mewburn  Ellis LLP,229166,"4,800.00",Not Applicable
Department for Business Energy and Industrial Strategy,Intellectual Property Office,11/04/2022,Supporting UK Business,Innovation Directorate,Mewburn  Ellis LLP,229432,"5,000.00",Not Applicable
Department for Business Energy and Industrial Strategy,Intellectual Property Office,29/04/2022,Supporting UK Business,Innovation Directorate,Mewburn  Ellis LLP,230199,"5,000.00",Not Applicable
Department for Business Energy and Industrial Strategy,Intellectual Property Office,29/04/2022,Supporting UK Business,Innovation Directorate,Venner Shipley  LLP,422086,"5,000.00",Not Applicable
Department for Business Energy and Industrial Strategy,Intellectual Property Office,08/04/2022,Staff Costs,People Places & Serv Directorate,Whitehall & Industry Group,2210532,"6,780.00",Not Applicable
Department for Business Energy and Industrial Strategy,Intellectual Property Office,21/04/2022,Supporting UK Business,International Policy Directorate,Foreign & Commonwealth and Development O,1143960,"3,646.42",Not Applicable
Department for Business Energy and Industrial Strategy,Intellectual Property Office,21/04/2022,Supporting UK Business,International Policy Directorate,Foreign & Commonwealth and Development O,1144201,"22,515.28",Not Applicable
Department for Business Energy and Industrial Strategy,Intellectual Property Office,29/04/2022,Supporting UK Business,International Policy Directorate,Foreign & Commonwealth and Development O,1144377,"29,476.90",Not Applicable
Department for Business Energy and Industrial Strategy,Intellectual Property Office,21/04/2022,Staff Costs,People Places & Serv Directorate,HM REVENUE & CUSTOMS,1.8E+13,"13,159.79",Not Applicable
Department for Business Energy and Industrial Strategy,Intellectual Property Office,06/04/2022,Computer Contracts,People Places & Serv Directorate,HM TREASURY,44462,"29,850.00",Not Applicable
Department for Business Energy and Industrial Strategy,Intellectual Property Office,06/04/2022,Supporting UK Business,Patent Directorate,BEAUFORT RESEARCH,22069,"16,590.00",Not Applicable
Department for Business Energy and Industrial Strategy,Intellectual Property Office,14/04/2022,Information Technology,IT Directorate,HORNBILL SERVICE MANAGEMENT LIMITE,HSMLI2200120,"1,706.60",Not Applicable
Department for Business Energy and Industrial Strategy,Intellectual Property Office,08/04/2022,Postage & Delivery Costs,People Places & Serv Directorate,RICO LOGISTICS LTD,SINRLLFS00362219,"1,616.53",Not Applicable
Department for Business Energy and Industrial Strategy,Intellectual Property Office,12/04/2022,Postage & Delivery Costs,People Places & Serv Directorate,RICO LOGISTICS LTD,SINRLLFS00363922,"2,013.60",Not Applicable
Department for Business Energy and Industrial Strategy,Intellectual Property Office,06/04/2022,Telecoms,IT Directorate,VIRGIN MEDIA,917218-APR22,772.51,Not Applicable
Department for Business Energy and Industrial Strategy,Intellectual Property Office,21/04/2022,Supporting UK Business,Innovation Directorate,LAWRIE INTELLECTUAL PROPERTY,122764,"2,500.00",Not Applicable
Department for Business Energy and Industrial Strategy,Intellectual Property Office,05/04/2022,Supporting UK Business,Innovation Directorate,LAWRIE INTELLECTUAL PROPERTY,122903,"2,500.00",Not Applicable
Department for Business Energy and Industrial Strategy,Intellectual Property Office,21/04/2022,Supporting UK Business,Innovation Directorate,LAWRIE INTELLECTUAL PROPERTY,122918,"2,500.00",Not Applicable
Department for Business Energy and Industrial Strategy,Intellectual Property Office,21/04/2022,Supporting UK Business,Innovation Directorate,LAWRIE INTELLECTUAL PROPERTY,122950,"2,500.00",Not Applicable
Department for Business Energy and Industrial Strategy,Intellectual Property Office,26/04/2022,Supporting UK Business,Innovation Directorate,LAWRIE INTELLECTUAL PROPERTY,123015,"2,500.00",Not Applicable
Department for Business Energy and Industrial Strategy,Intellectual Property Office,29/04/2022,Supporting UK Business,Innovation Directorate,LAWRIE INTELLECTUAL PROPERTY,123051,"5,000.00",Not Applicable
Department for Business Energy and Industrial Strategy,Intellectual Property Office,26/04/2022,Supporting UK Business,Innovation Directorate,LAWRIE INTELLECTUAL PROPERTY,123066,"2,500.00",Not Applicable
Department for Business Energy and Industrial Strategy,Intellectual Property Office,19/04/2022,Supporting UK Business,Innovation Directorate,INNGOT LTD,T22-02-4,"2,500.00",Not Applicable
Department for Business Energy and Industrial Strategy,Intellectual Property Office,26/04/2022,Supporting UK Business,Innovation Directorate,INNGOT LTD,T22-03-4,"5,000.00",Not Applicable
Department for Business Energy and Industrial Strategy,Intellectual Property Office,26/04/2022,Supporting UK Business,Innovation Directorate,INNGOT LTD,T22-3/14,"2,500.00",Not Applicable
Department for Business Energy and Industrial Strategy,Intellectual Property Office,19/04/2022,Supporting UK Business,Innovation Directorate,STEPHENS SCOWN LLP,170113,"5,000.00",Not Applicable
Department for Business Energy and Industrial Strategy,Intellectual Property Office,29/04/2022,Supporting UK Business,Innovation Directorate,STEPHENS SCOWN LLP,170155,"5,000.00",Not Applicable
Department for Business Energy and Industrial Strategy,Intellectual Property Office,12/04/2022,Supporting UK Business,Innovation Directorate,STEPHENS SCOWN LLP,170251,"5,000.00",Not Applicable
Department for Business Energy and Industrial Strategy,Intellectual Property Office,07/04/2022,Pay Costs,Finance Directorate,Accountancy Recruitment Wales Ltd,999803,"2,280.83",Not Applicable
Department for Business Energy and Industrial Strategy,Intellectual Property Office,07/04/2022,Pay Costs,Finance Directorate,Accountancy Recruitment Wales Ltd,999804,"1,243.20",Not Applicable
Department for Business Energy and Industrial Strategy,Intellectual Property Office,13/04/2022,Pay Costs,Finance Directorate,Accountancy Recruitment Wales Ltd,999806,"1,243.20",Not Applicable
Department for Business Energy and Industrial Strategy,Intellectual Property Office,13/04/2022,Pay Costs,Finance Directorate,Accountancy Recruitment Wales Ltd,999807,"2,280.83",Not Applicable
Department for Business Energy and Industrial Strategy,Intellectual Property Office,21/04/2022,Pay Costs,Finance Directorate,Accountancy Recruitment Wales Ltd,999809,"1,972.61",Not Applicable
Department for Business Energy and Industrial Strategy,Intellectual Property Office,21/04/2022,Pay Costs,Finance Directorate,Accountancy Recruitment Wales Ltd,999811,"1,008.00",Not Applicable
Department for Business Energy and Industrial Strategy,Intellectual Property Office,27/04/2022,Pay Costs,Finance Directorate,Accountancy Recruitment Wales Ltd,999812,"1,008.00",Not Applicable
Department for Business Energy and Industrial Strategy,Intellectual Property Office,28/04/2022,Pay Costs,Finance Directorate,Accountancy Recruitment Wales Ltd,999813,"1,926.37",Not Applicable
Department for Business Energy and Industrial Strategy,Intellectual Property Office,08/04/2022,Postage & Delivery Costs,People Places & Serv Directorate,CitySprint (UK) Ltd,3897490,"5,263.68",Not Applicable
Department for Business Energy and Industrial Strategy,Intellectual Property Office,05/04/2022,Supporting UK Business,Innovation Directorate,N.J.AKERS & CO LTD,223105,"2,500.00",Not Applicable
Department for Business Energy and Industrial Strategy,Intellectual Property Office,05/04/2022,Supporting UK Business,Innovation Directorate,N.J.AKERS & CO LTD,223106,"2,500.00",Not Applicable
Department for Business Energy and Industrial Strategy,Intellectual Property Office,14/04/2022,Accommodation,People Places & Serv Directorate,EDF ENERGY,11989783,"1,082.47",Not Applicable
Department for Business Energy and Industrial Strategy,Intellectual Property Office,13/04/2022,Accommodation,People Places & Serv Directorate,EDF ENERGY,11990596,"27,387.28",Not Applicable
Department for Business Energy and Industrial Strategy,Intellectual Property Office,21/04/2022,Information Technology,IT Directorate,Bytes Software Services Ltd,906530,"3,558.85",Not Applicable
Department for Business Energy and Industrial Strategy,Intellectual Property Office,22/04/2022,Information Technology,IT Directorate,Bytes Software Services Ltd,906872,"32,899.33",Not Applicable
Department for Business Energy and Industrial Strategy,Intellectual Property Office,19/04/2022,Staff Costs,People Places & Serv Directorate,Sodexo Motivation Solutions UK Ltd,3803985,"3,153.39",Not Applicable
Department for Business Energy and Industrial Strategy,Intellectual Property Office,21/04/2022,Telecoms,IT Directorate,EE Ltd,1287464282,"1,030.19",Not Applicable
Department for Business Energy and Industrial Strategy,Intellectual Property Office,20/04/2022,Marketing & Publicity,Innovation Directorate,SGA Productions Ltd,S40137,"3,900.00",Not Applicable
Department for Business Energy and Industrial Strategy,Intellectual Property Office,06/04/2022,Supporting UK Business,International Policy Directorate,FCDO Services,1143583,"136,601.80",Not Applicable
Department for Business Energy and Industrial Strategy,Intellectual Property Office,08/04/2022,Miscellaneous Expenses General,Trade Mark Directorate,FCDO Services,6082343,"1,500.00",Not Applicable
Department for Business Energy and Industrial Strategy,Intellectual Property Office,29/04/2022,Supporting UK Business,Innovation Directorate,Murgitroyd & Company Ltd,05477Y-22,"2,790.00",Not Applicable
Department for Business Energy and Industrial Strategy,Intellectual Property Office,28/04/2022,Supporting UK Business,Innovation Directorate,Murgitroyd & Company Ltd,09332Y-22,"2,500.00",Not Applicable
Department for Business Energy and Industrial Strategy,Intellectual Property Office,19/04/2022,Supporting UK Business,Innovation Directorate,Murgitroyd & Company Ltd,15171-22,"2,400.00",Not Applicable
Department for Business Energy and Industrial Strategy,Intellectual Property Office,19/04/2022,Supporting UK Business,Innovation Directorate,Murgitroyd & Company Ltd,15538Y-22,"2,500.00",Not Applicable
Department for Business Energy and Industrial Strategy,Intellectual Property Office,26/04/2022,Supporting UK Business,Innovation Directorate,Murgitroyd & Company Ltd,15747-22,"4,978.94",Not Applicable
Department for Business Energy and Industrial Strategy,Intellectual Property Office,29/04/2022,Supporting UK Business,Innovation Directorate,Murgitroyd & Company Ltd,18567A-22,"5,000.00",Not Applicable
Department for Business Energy and Industrial Strategy,Intellectual Property Office,01/04/2022,Staff Costs,People Places & Serv Directorate,The Clive Davis Partnership Ltd.,CDSC/3515-,"1,200.00",Not Applicable
Department for Business Energy and Industrial Strategy,Intellectual Property Office,01/04/2022,Staff Costs,People Places & Serv Directorate,The Clive Davis Partnership Ltd.,CDSC/3516-,"1,200.00",Not Applicable
Department for Business Energy and Industrial Strategy,Intellectual Property Office,28/04/2022,Information Technology,Patent Directorate,European Patent Office,40307051,"121,854.48",Not Applicable
Department for Business Energy and Industrial Strategy,Intellectual Property Office,29/04/2022,Information Technology,Patent Directorate,STN International,9340369524,"6,705.00",Not Applicable
Department for Business Energy and Industrial Strategy,Intellectual Property Office,28/04/2022,Information Technology,IT Directorate,COEXYA SAS,SIP-EUA-F2204001,"61,457.45",Not Applicable
Department for Business Energy and Industrial Strategy,Intellectual Property Office,22/04/2022,Office Supplies,People Places & Serv Directorate,ST JOHN AMBULANCE SHARED SERVICES,27287,"2,155.20",Not Applicable
Department for Business Energy and Industrial Strategy,Intellectual Property Office,04/04/2022,Miscellaneous Expenses General,People Places & Serv Directorate,Insight Health Screening,IHS-INV-0571,969.60,Not Applicable
Department for Business Energy and Industrial Strategy,Intellectual Property Office,14/04/2022,Accommodation,People Places & Serv Directorate,Insight Health Screening,IHS-INV-0746,"2,029.19",Not Applicable
Department for Business Energy and Industrial Strategy,Intellectual Property Office,26/04/2022,Miscellaneous Expenses General,People Places & Serv Directorate,Insight Health Screening,IHS-INV-0910,"2,137.76",Not Applicable
Department for Business Energy and Industrial Strategy,Intellectual Property Office,29/04/2022,Supporting UK Business,Innovation Directorate,Scintilla,INV-03211,"5,000.00",Not Applicable
Department for Business Energy and Industrial Strategy,Intellectual Property Office,05/04/2022,Supporting UK Business,Innovation Directorate,Forresters clear direction,KBG-5853830,"2,500.00",Not Applicable
Department for Business Energy and Industrial Strategy,Intellectual Property Office,06/04/2022,Supporting UK Business,Innovation Directorate,Forresters clear direction,KBO-5855169,"2,500.00",Not Applicable
Department for Business Energy and Industrial Strategy,Intellectual Property Office,08/04/2022,Staff Costs,People Places & Serv Directorate,ASSOCIATION OF CHIEF EXECUTIVES,ACE1394,650.00,Not Applicable
Department for Business Energy and Industrial Strategy,Intellectual Property Office,19/04/2022,Supporting UK Business,Innovation Directorate,MBM Commercial LLP,29055,"5,000.00",Not Applicable
Department for Business Energy and Industrial Strategy,Intellectual Property Office,26/04/2022,Supporting UK Business,Innovation Directorate,Wynne-Jones Laine and James LLP,2013349,"2,500.00",Not Applicable
Department for Business Energy and Industrial Strategy,Intellectual Property Office,08/04/2022,Staff Costs,People Places & Serv Directorate,IT Governance Ltd,INV-012537,"8,640.00",Not Applicable
Department for Business Energy and Industrial Strategy,Intellectual Property Office,29/04/2022,Supporting UK Business,Innovation Directorate,Appleyard Lees,157560,"5,000.00",Not Applicable
Department for Business Energy and Industrial Strategy,Intellectual Property Office,29/04/2022,Supporting UK Business,Innovation Directorate,Appleyard Lees,157568,"4,999.99",Not Applicable
Department for Business Energy and Industrial Strategy,Intellectual Property Office,05/04/2022,Supporting UK Business,Innovation Directorate,Albright ip,149224,"2,500.00",Not Applicable
Department for Business Energy and Industrial Strategy,Intellectual Property Office,26/04/2022,Supporting UK Business,Innovation Directorate,Ellis IP Limited,4767,"2,500.00",Not Applicable
Department for Business Energy and Industrial Strategy,Intellectual Property Office,28/04/2022,Telecoms,IT Directorate,Ripe NCC,22017345,666.53,Not Applicable
Department for Business Energy and Industrial Strategy,Intellectual Property Office,04/04/2022,Staff Costs,People Places & Serv Directorate,Ernst & Young LLP,GB01G000290895,"1,393.20",Not Applicable
Department for Business Energy and Industrial Strategy,Intellectual Property Office,08/04/2022,Staff Costs,People Places & Serv Directorate,Ernst & Young LLP,GB01G000291701,928.80,Not Applicable
Department for Business Energy and Industrial Strategy,Intellectual Property Office,21/04/2022,Staff Costs,People Places & Serv Directorate,Ernst & Young LLP,GB01G000295706,"1,393.20",Not Applicable
Department for Business Energy and Industrial Strategy,Intellectual Property Office,28/04/2022,Staff Costs,People Places & Serv Directorate,Ernst & Young LLP,GB01G000296667,"1,323.60",Not Applicable
Department for Business Energy and Industrial Strategy,Intellectual Property Office,06/04/2022,Supporting UK Business,Innovation Directorate,Ipentus Limited,IP0014,"2,500.00",Not Applicable
Department for Business Energy and Industrial Strategy,Intellectual Property Office,21/04/2022,Staff Costs,Finance Directorate,KPMG LLP (CSL),5502420595,"12,310.80",Not Applicable
Department for Business Energy and Industrial Strategy,Intellectual Property Office,25/04/2022,Staff Costs,People Places & Serv Directorate,KPMG LLP (CSL),5502424083,"2,337.60",Not Applicable
Department for Business Energy and Industrial Strategy,Intellectual Property Office,12/04/2022,Staff Costs,People Places & Serv Directorate,Korn Ferry UK limited,1195072180,"10,794.49",Not Applicable
Department for Business Energy and Industrial Strategy,Intellectual Property Office,12/04/2022,Staff Costs,People Places & Serv Directorate,Korn Ferry UK limited,1195072192,"5,989.55",Not Applicable
Department for Business Energy and Industrial Strategy,Intellectual Property Office,12/04/2022,Staff Costs,People Places & Serv Directorate,Korn Ferry UK limited,1195072200,"5,989.55",Not Applicable
Department for Business Energy and Industrial Strategy,Intellectual Property Office,12/04/2022,Staff Costs,People Places & Serv Directorate,Korn Ferry UK limited,1195072207,"5,989.55",Not Applicable
Department for Business Energy and Industrial Strategy,Intellectual Property Office,05/04/2022,Supporting UK Business,Innovation Directorate,Capella IP Ltd,22043,"5,000.00",Not Applicable
Department for Business Energy and Industrial Strategy,Intellectual Property Office,29/04/2022,Marketing & Publicity,Innovation Directorate,Centre Island Birmingham Ltd,IPO030522,"4,377.00",Not Applicable
Department for Business Energy and Industrial Strategy,Intellectual Property Office,19/04/2022,Supporting UK Business,Innovation Directorate,Marriott Harrison LLP,19438,"5,000.00",Not Applicable
Department for Business Energy and Industrial Strategy,Intellectual Property Office,28/04/2022,Supporting UK Business,Innovation Directorate,Culverstons IP,22-04-0010,"2,500.00",Not Applicable
Department for Business Energy and Industrial Strategy,Intellectual Property Office,11/04/2022,Supporting UK Business,Innovation Directorate,Agile IP LLP,IPO-2-17816,"2,500.00",Not Applicable
Department for Business Energy and Industrial Strategy,Intellectual Property Office,05/04/2022,Marketing & Publicity,Innovation Directorate,First Group Enterprises Ltd,INV-1289,"5,940.00",Not Applicable
Department for Business Energy and Industrial Strategy,Intellectual Property Office,04/04/2022,Marketing & Publicity,Innovation Directorate,First Group Enterprises Ltd,INV-1308,"1,830.00",Not Applicable
Department for Business Energy and Industrial Strategy,Intellectual Property Office,07/04/2022,Marketing & Publicity,Innovation Directorate,First Group Enterprises Ltd,INV-1326,"1,830.00",Not Applicable
Department for Business Energy and Industrial Strategy,Intellectual Property Office,11/04/2022,Information Technology,IT Directorate,Equal Experts UK Ltd,INV-10223,"15,000.00",Not Applicable
Department for Business Energy and Industrial Strategy,Intellectual Property Office,19/04/2022,Miscellaneous Expenses General,People Places & Serv Directorate,Autism Spectrum Connections Cymru,3392,"1,276.16",Not Applicable
Department for Business Energy and Industrial Strategy,Intellectual Property Office,06/04/2022,Supporting UK Business,Innovation Directorate,A City Law Firm,216210,"2,500.01",Not Applicable
Department for Business Energy and Industrial Strategy,Intellectual Property Office,06/04/2022,Supporting UK Business,Innovation Directorate,IP21 LTD,28305,"2,499.60",Not Applicable
Department for Business Energy and Industrial Strategy,Intellectual Property Office,25/04/2022,Accommodation,People Places & Serv Directorate,Shred It Limited,9505283752,"1,075.50",Not Applicable
Department for Business Energy and Industrial Strategy,Intellectual Property Office,19/04/2022,Supporting UK Business,Innovation Directorate,Mathys & Squire IP,446934,"2,500.00",Not Applicable
Department for Business Energy and Industrial Strategy,Intellectual Property Office,28/04/2022,Supporting UK Business,Innovation Directorate,Keltie LLP,166062,"2,500.00",Not Applicable
Department for Business Energy and Industrial Strategy,Intellectual Property Office,01/04/2022,Staff Costs,People Places & Serv Directorate,Video Arts Ltd Number 2 Account,IN-03582,"11,520.00",Not Applicable
Department for Business Energy and Industrial Strategy,Intellectual Property Office,13/04/2022,Information Technology,IT Directorate,8X8 Solutions,3390341,"3,288.85",Not Applicable
Department for Business Energy and Industrial Strategy,Intellectual Property Office,22/04/2022,Supporting UK Business,Innovation Directorate,HFG Limited,681004,"5,000.00",Not Applicable
Department for Business Energy and Industrial Strategy,Intellectual Property Office,06/04/2022,Supporting UK Business,Innovation Directorate,HFG Limited,681479,"2,500.00",Not Applicable
Department for Business Energy and Industrial Strategy,Intellectual Property Office,01/04/2022,Supporting UK Business,Innovation Directorate,HFG Limited,681674,"3,229.20",Not Applicable
Department for Business Energy and Industrial Strategy,Intellectual Property Office,05/04/2022,Supporting UK Business,Innovation Directorate,CRAC Limited,CN-0678,"-11,424.00",Not Applicable
Department for Business Energy and Industrial Strategy,Intellectual Property Office,05/04/2022,Supporting UK Business,Innovation Directorate,CRAC Limited,INV-0658,"11,424.00",Not Applicable
Department for Business Energy and Industrial Strategy,Intellectual Property Office,07/04/2022,Supporting UK Business,Innovation Directorate,CRAC Limited,INV-0677,"9,024.00",Not Applicable
Department for Business Energy and Industrial Strategy,Intellectual Property Office,20/04/2022,Supporting UK Business,Innovation Directorate,CRAC Limited,INV-0683,"3,810.00",Not Applicable
Department for Business Energy and Industrial Strategy,Intellectual Property Office,19/04/2022,Supporting UK Business,Innovation Directorate,Gately Plc,INV405182,"2,500.00",Not Applicable
Department for Business Energy and Industrial Strategy,Intellectual Property Office,26/04/2022,Supporting UK Business,Innovation Directorate,Praxis Courses Ltd,S52349,995.00,Not Applicable
Department for Business Energy and Industrial Strategy,Intellectual Property Office,19/04/2022,Supporting UK Business,Innovation Directorate,The IP Asset Partnership Ltd,2203002,"2,500.00",Not Applicable
Department for Business Energy and Industrial Strategy,Intellectual Property Office,21/04/2022,Supporting UK Business,Innovation Directorate,The IP Asset Partnership Ltd,2204001,"2,500.00",Not Applicable
Department for Business Energy and Industrial Strategy,Intellectual Property Office,11/04/2022,Supporting UK Business,Innovation Directorate,Definition IP Ltd,INV-002516,"2,500.00",Not Applicable
Department for Business Energy and Industrial Strategy,Intellectual Property Office,11/04/2022,Supporting UK Business,Innovation Directorate,Definition IP Ltd,INV-002572,"1,800.00",Not Applicable
Department for Business Energy and Industrial Strategy,Intellectual Property Office,29/04/2022,Supporting UK Business,Innovation Directorate,Definition IP Ltd,INV-002589,"1,800.00",Not Applicable
Department for Business Energy and Industrial Strategy,Intellectual Property Office,28/04/2022,Staff Costs,IT Directorate,eLearningCurve LLC,1164-22-02,"3,696.94",Not Applicable
Department for Business Energy and Industrial Strategy,Intellectual Property Office,13/04/2022,Telecoms,IT Directorate,Gamma Telecom Ltd,GA1654043,"2,686.64",Not Applicable
Department for Business Energy and Industrial Strategy,Intellectual Property Office,13/04/2022,Information Technology,IT Directorate,Acuma Solutions Limited,SIN023500,"7,774.80",Not Applicable
Department for Business Energy and Industrial Strategy,Intellectual Property Office,26/04/2022,Supporting UK Business,Innovation Directorate,Barker Brettell LLP,451924,"2,500.00",Not Applicable
Department for Business Energy and Industrial Strategy,Intellectual Property Office,11/04/2022,Staff Costs,People Places & Serv Directorate,Tracy Mountain,IPO-0070,600.00,Not Applicable
Department for Business Energy and Industrial Strategy,Intellectual Property Office,27/04/2022,Staff Costs,People Places & Serv Directorate,Tracy Mountain,IPO-0071,"1,200.00",Not Applicable
Department for Business Energy and Industrial Strategy,Intellectual Property Office,21/04/2022,Other FA at Cost,Projects,Deloitte LLP,8002539201,"405,093.60",Not Applicable
Department for Business Energy and Industrial Strategy,Intellectual Property Office,21/04/2022,Other FA at Cost,Projects,Deloitte LLP,8002539202,"165,764.40",Not Applicable
Department for Business Energy and Industrial Strategy,Intellectual Property Office,21/04/2022,Other FA at Cost,Projects,Deloitte LLP,8002539203,"215,540.40",Not Applicable
Department for Business Energy and Industrial Strategy,Intellectual Property Office,05/04/2022,Supporting UK Business,Copyright and Enforcement Directorate,Gavin Terry Consulting,0422/231,"1,200.00",Not Applicable
Department for Business Energy and Industrial Strategy,Intellectual Property Office,13/04/2022,Pay Costs,IT Directorate,Alexander Mann Solutions Limited,2528381,"3,695.58",Not Applicable
Department for Business Energy and Industrial Strategy,Intellectual Property Office,05/04/2022,Pay Costs,Projects,Alexander Mann Solutions Limited,2533170,"1,760.30",Not Applicable
Department for Business Energy and Industrial Strategy,Intellectual Property Office,04/04/2022,Pay Costs,IT Directorate,Alexander Mann Solutions Limited,2533171,"2,649.72",Not Applicable
Department for Business Energy and Industrial Strategy,Intellectual Property Office,05/04/2022,Pay Costs,IT Directorate,Alexander Mann Solutions Limited,2533172,"6,159.36",Not Applicable
Department for Business Energy and Industrial Strategy,Intellectual Property Office,04/04/2022,Pay Costs,Patent Directorate,Alexander Mann Solutions Limited,2533174,636.70,Not Applicable
Department for Business Energy and Industrial Strategy,Intellectual Property Office,04/04/2022,Pay Costs,Patent Directorate,Alexander Mann Solutions Limited,2533175,636.70,Not Applicable
Department for Business Energy and Industrial Strategy,Intellectual Property Office,04/04/2022,Pay Costs,IT Directorate,Alexander Mann Solutions Limited,2533176,"3,611.94",Not Applicable
Department for Business Energy and Industrial Strategy,Intellectual Property Office,04/04/2022,Pay Costs,Patent Directorate,Alexander Mann Solutions Limited,2533177,524.84,Not Applicable
Department for Business Energy and Industrial Strategy,Intellectual Property Office,04/04/2022,Pay Costs,IT Directorate,Alexander Mann Solutions Limited,2533178,"2,772.24",Not Applicable
Department for Business Energy and Industrial Strategy,Intellectual Property Office,04/04/2022,Pay Costs,IT Directorate,Alexander Mann Solutions Limited,2533179,"2,628.01",Not Applicable
Department for Business Energy and Industrial Strategy,Intellectual Property Office,04/04/2022,Pay Costs,Patent Directorate,Alexander Mann Solutions Limited,2533180,645.30,Not Applicable
Department for Business Energy and Industrial Strategy,Intellectual Property Office,04/04/2022,Pay Costs,IT Directorate,Alexander Mann Solutions Limited,2533181,719.92,Not Applicable
Department for Business Energy and Industrial Strategy,Intellectual Property Office,04/04/2022,Pay Costs,Patent Directorate,Alexander Mann Solutions Limited,2533182,645.30,Not Applicable
Department for Business Energy and Industrial Strategy,Intellectual Property Office,04/04/2022,Pay Costs,IT Directorate,Alexander Mann Solutions Limited,2533183,"4,090.44",Not Applicable
Department for Business Energy and Industrial Strategy,Intellectual Property Office,04/04/2022,Pay Costs,Patent Directorate,Alexander Mann Solutions Limited,2533184,602.28,Not Applicable
Department for Business Energy and Industrial Strategy,Intellectual Property Office,04/04/2022,Pay Costs,Patent Directorate,Alexander Mann Solutions Limited,2533185,610.06,Not Applicable
Department for Business Energy and Industrial Strategy,Intellectual Property Office,04/04/2022,Pay Costs,IT Directorate,Alexander Mann Solutions Limited,2533186,"2,255.58",Not Applicable
Department for Business Energy and Industrial Strategy,Intellectual Property Office,04/04/2022,Pay Costs,Patent Directorate,Alexander Mann Solutions Limited,2533187,645.30,Not Applicable
Department for Business Energy and Industrial Strategy,Intellectual Property Office,04/04/2022,Pay Costs,Patent Directorate,Alexander Mann Solutions Limited,2533188,610.06,Not Applicable
Department for Business Energy and Industrial Strategy,Intellectual Property Office,04/04/2022,Pay Costs,IT Directorate,Alexander Mann Solutions Limited,2533190,"3,629.22",Not Applicable
Department for Business Energy and Industrial Strategy,Intellectual Property Office,07/04/2022,Pay Costs,IT Directorate,Alexander Mann Solutions Limited,2533191,"2,772.24",Not Applicable
Department for Business Energy and Industrial Strategy,Intellectual Property Office,05/04/2022,Pay Costs,Finance Directorate,Alexander Mann Solutions Limited,2533192,670.10,Not Applicable
Department for Business Energy and Industrial Strategy,Intellectual Property Office,04/04/2022,Pay Costs,Patent Directorate,Alexander Mann Solutions Limited,2533193,519.85,Not Applicable
Department for Business Energy and Industrial Strategy,Intellectual Property Office,04/04/2022,Pay Costs,IT Directorate,Alexander Mann Solutions Limited,2533194,"3,024.30",Not Applicable
Department for Business Energy and Industrial Strategy,Intellectual Property Office,05/04/2022,Pay Costs,IT Directorate,Alexander Mann Solutions Limited,2533195,"3,570.59",Not Applicable
Department for Business Energy and Industrial Strategy,Intellectual Property Office,04/04/2022,Pay Costs,Patent Directorate,Alexander Mann Solutions Limited,2533196,552.12,Not Applicable
Department for Business Energy and Industrial Strategy,Intellectual Property Office,04/04/2022,Pay Costs,IT Directorate,Alexander Mann Solutions Limited,2533197,"2,930.40",Not Applicable
Department for Business Energy and Industrial Strategy,Intellectual Property Office,04/04/2022,Pay Costs,IT Directorate,Alexander Mann Solutions Limited,2533198,"2,083.04",Not Applicable
Department for Business Energy and Industrial Strategy,Intellectual Property Office,04/04/2022,Pay Costs,IT Directorate,Alexander Mann Solutions Limited,2533199,"3,695.58",Not Applicable
Department for Business Energy and Industrial Strategy,Intellectual Property Office,04/04/2022,Pay Costs,IT Directorate,Alexander Mann Solutions Limited,2533200,"2,999.70",Not Applicable
Department for Business Energy and Industrial Strategy,Intellectual Property Office,04/04/2022,Pay Costs,Patent Directorate,Alexander Mann Solutions Limited,2533201,645.30,Not Applicable
Department for Business Energy and Industrial Strategy,Intellectual Property Office,04/04/2022,Pay Costs,Projects,Alexander Mann Solutions Limited,2533202,"2,772.24",Not Applicable
Department for Business Energy and Industrial Strategy,Intellectual Property Office,04/04/2022,Pay Costs,Projects,Alexander Mann Solutions Limited,2533203,"3,150.30",Not Applicable
Department for Business Energy and Industrial Strategy,Intellectual Property Office,04/04/2022,Pay Costs,IT Directorate,Alexander Mann Solutions Limited,2533204,"4,095.36",Not Applicable
Department for Business Energy and Industrial Strategy,Intellectual Property Office,04/04/2022,Pay Costs,Projects,Alexander Mann Solutions Limited,2533205,"4,090.44",Not Applicable
Department for Business Energy and Industrial Strategy,Intellectual Property Office,05/04/2022,Pay Costs,Projects,Alexander Mann Solutions Limited,2533206,"10,963.04",Not Applicable
Department for Business Energy and Industrial Strategy,Intellectual Property Office,04/04/2022,Pay Costs,Projects,Alexander Mann Solutions Limited,2533207,"2,999.70",Not Applicable
Department for Business Energy and Industrial Strategy,Intellectual Property Office,05/04/2022,Pay Costs,Projects,Alexander Mann Solutions Limited,2533208,"8,190.72",Not Applicable
Department for Business Energy and Industrial Strategy,Intellectual Property Office,04/04/2022,Pay Costs,Projects,Alexander Mann Solutions Limited,2533209,"4,090.44",Not Applicable
Department for Business Energy and Industrial Strategy,Intellectual Property Office,04/04/2022,Pay Costs,Patent Directorate,Alexander Mann Solutions Limited,2533210,618.19,Not Applicable
Department for Business Energy and Industrial Strategy,Intellectual Property Office,04/04/2022,Pay Costs,Patent Directorate,Alexander Mann Solutions Limited,2533211,566.28,Not Applicable
Department for Business Energy and Industrial Strategy,Intellectual Property Office,04/04/2022,Pay Costs,Innovation Directorate,Alexander Mann Solutions Limited,2533212,698.41,Not Applicable
Department for Business Energy and Industrial Strategy,Intellectual Property Office,04/04/2022,Pay Costs,Finance Directorate,Alexander Mann Solutions Limited,2533214,"1,194.26",Not Applicable
Department for Business Energy and Industrial Strategy,Intellectual Property Office,04/04/2022,Pay Costs,Finance Directorate,Alexander Mann Solutions Limited,2533215,"2,985.66",Not Applicable
Department for Business Energy and Industrial Strategy,Intellectual Property Office,04/04/2022,Pay Costs,IT Directorate,Alexander Mann Solutions Limited,2533216,"2,440.62",Not Applicable
Department for Business Energy and Industrial Strategy,Intellectual Property Office,04/04/2022,Pay Costs,Trade Mark Directorate,Alexander Mann Solutions Limited,2533217,619.92,Not Applicable
Department for Business Energy and Industrial Strategy,Intellectual Property Office,04/04/2022,Pay Costs,IT Directorate,Alexander Mann Solutions Limited,2533218,"3,465.30",Not Applicable
Department for Business Energy and Industrial Strategy,Intellectual Property Office,04/04/2022,Pay Costs,Trade Mark Directorate,Alexander Mann Solutions Limited,2533219,764.57,Not Applicable
Department for Business Energy and Industrial Strategy,Intellectual Property Office,04/04/2022,Pay Costs,Trade Mark Directorate,Alexander Mann Solutions Limited,2533220,764.57,Not Applicable
Department for Business Energy and Industrial Strategy,Intellectual Property Office,04/04/2022,Pay Costs,Projects,Alexander Mann Solutions Limited,2533222,"2,646.25",Not Applicable
Department for Business Energy and Industrial Strategy,Intellectual Property Office,04/04/2022,Pay Costs,Projects,Alexander Mann Solutions Limited,2533223,"3,580.86",Not Applicable
Department for Business Energy and Industrial Strategy,Intellectual Property Office,04/04/2022,Pay Costs,IT Directorate,Alexander Mann Solutions Limited,2533224,"4,410.42",Not Applicable
Department for Business Energy and Industrial Strategy,Intellectual Property Office,04/04/2022,Pay Costs,People Places & Serv Directorate,Alexander Mann Solutions Limited,2533225,698.41,Not Applicable
Department for Business Energy and Industrial Strategy,Intellectual Property Office,08/04/2022,Pay Costs,Trade Mark Directorate,Alexander Mann Solutions Limited,2538146,705.96,Not Applicable
Department for Business Energy and Industrial Strategy,Intellectual Property Office,11/04/2022,Pay Costs,IT Directorate,Alexander Mann Solutions Limited,2538147,"3,079.68",Not Applicable
Department for Business Energy and Industrial Strategy,Intellectual Property Office,11/04/2022,Pay Costs,IT Directorate,Alexander Mann Solutions Limited,2538148,"3,416.70",Not Applicable
Department for Business Energy and Industrial Strategy,Intellectual Property Office,11/04/2022,Pay Costs,IT Directorate,Alexander Mann Solutions Limited,2538149,"3,504.02",Not Applicable
Department for Business Energy and Industrial Strategy,Intellectual Property Office,11/04/2022,Pay Costs,IT Directorate,Alexander Mann Solutions Limited,2538150,"1,439.83",Not Applicable
Department for Business Energy and Industrial Strategy,Intellectual Property Office,11/04/2022,Pay Costs,IT Directorate,Alexander Mann Solutions Limited,2538151,"4,090.44",Not Applicable
Department for Business Energy and Industrial Strategy,Intellectual Property Office,11/04/2022,Pay Costs,IT Directorate,Alexander Mann Solutions Limited,2538152,"2,255.58",Not Applicable
Department for Business Energy and Industrial Strategy,Intellectual Property Office,12/04/2022,Pay Costs,Patent Directorate,Alexander Mann Solutions Limited,2538153,698.41,Not Applicable
Department for Business Energy and Industrial Strategy,Intellectual Property Office,11/04/2022,Pay Costs,Patent Directorate,Alexander Mann Solutions Limited,2538154,698.41,Not Applicable
Department for Business Energy and Industrial Strategy,Intellectual Property Office,11/04/2022,Pay Costs,Patent Directorate,Alexander Mann Solutions Limited,2538155,645.30,Not Applicable
Department for Business Energy and Industrial Strategy,Intellectual Property Office,11/04/2022,Pay Costs,Patent Directorate,Alexander Mann Solutions Limited,2538156,616.27,Not Applicable
Department for Business Energy and Industrial Strategy,Intellectual Property Office,11/04/2022,Pay Costs,IT Directorate,Alexander Mann Solutions Limited,2538158,"3,629.22",Not Applicable
Department for Business Energy and Industrial Strategy,Intellectual Property Office,11/04/2022,Pay Costs,IT Directorate,Alexander Mann Solutions Limited,2538159,"2,772.24",Not Applicable
Department for Business Energy and Industrial Strategy,Intellectual Property Office,11/04/2022,Pay Costs,Projects,Alexander Mann Solutions Limited,2538160,"6,972.00",Not Applicable
Department for Business Energy and Industrial Strategy,Intellectual Property Office,11/04/2022,Pay Costs,Patent Directorate,Alexander Mann Solutions Limited,2538161,811.14,Not Applicable
Department for Business Energy and Industrial Strategy,Intellectual Property Office,11/04/2022,Pay Costs,IT Directorate,Alexander Mann Solutions Limited,2538162,"2,216.70",Not Applicable
Department for Business Energy and Industrial Strategy,Intellectual Property Office,11/04/2022,Pay Costs,Patent Directorate,Alexander Mann Solutions Limited,2538163,642.91,Not Applicable
Department for Business Energy and Industrial Strategy,Intellectual Property Office,11/04/2022,Pay Costs,Patent Directorate,Alexander Mann Solutions Limited,2538164,651.60,Not Applicable
Department for Business Energy and Industrial Strategy,Intellectual Property Office,08/04/2022,Pay Costs,Patent Directorate,Alexander Mann Solutions Limited,2538165,974.20,Not Applicable
Department for Business Energy and Industrial Strategy,Intellectual Property Office,11/04/2022,Pay Costs,Patent Directorate,Alexander Mann Solutions Limited,2538166,642.91,Not Applicable
Department for Business Energy and Industrial Strategy,Intellectual Property Office,11/04/2022,Pay Costs,Patent Directorate,Alexander Mann Solutions Limited,2538167,521.28,Not Applicable
Department for Business Energy and Industrial Strategy,Intellectual Property Office,11/04/2022,Pay Costs,IT Directorate,Alexander Mann Solutions Limited,2538168,"8,190.72",Not Applicable
Department for Business Energy and Industrial Strategy,Intellectual Property Office,11/04/2022,Pay Costs,IT Directorate,Alexander Mann Solutions Limited,2538169,"2,930.40",Not Applicable
Department for Business Energy and Industrial Strategy,Intellectual Property Office,11/04/2022,Pay Costs,IT Directorate,Alexander Mann Solutions Limited,2538170,"2,108.95",Not Applicable
Department for Business Energy and Industrial Strategy,Intellectual Property Office,11/04/2022,Pay Costs,IT Directorate,Alexander Mann Solutions Limited,2538171,739.12,Not Applicable
Department for Business Energy and Industrial Strategy,Intellectual Property Office,11/04/2022,Pay Costs,Patent Directorate,Alexander Mann Solutions Limited,2538172,651.60,Not Applicable
Department for Business Energy and Industrial Strategy,Intellectual Property Office,11/04/2022,Pay Costs,Patent Directorate,Alexander Mann Solutions Limited,2538173,651.60,Not Applicable
Department for Business Energy and Industrial Strategy,Intellectual Property Office,11/04/2022,Pay Costs,Patent Directorate,Alexander Mann Solutions Limited,2538174,651.60,Not Applicable
Department for Business Energy and Industrial Strategy,Intellectual Property Office,11/04/2022,Pay Costs,Projects,Alexander Mann Solutions Limited,2538175,"3,465.30",Not Applicable
Department for Business Energy and Industrial Strategy,Intellectual Property Office,11/04/2022,Pay Costs,Projects,Alexander Mann Solutions Limited,2538176,"3,150.30",Not Applicable
Department for Business Energy and Industrial Strategy,Intellectual Property Office,11/04/2022,Pay Costs,IT Directorate,Alexander Mann Solutions Limited,2538177,"4,095.36",Not Applicable
Department for Business Energy and Industrial Strategy,Intellectual Property Office,11/04/2022,Pay Costs,Projects,Alexander Mann Solutions Limited,2538178,"4,090.44",Not Applicable
Department for Business Energy and Industrial Strategy,Intellectual Property Office,11/04/2022,Pay Costs,Projects,Alexander Mann Solutions Limited,2538179,"2,999.70",Not Applicable
Department for Business Energy and Industrial Strategy,Intellectual Property Office,11/04/2022,Pay Costs,Projects,Alexander Mann Solutions Limited,2538180,"4,090.44",Not Applicable
Department for Business Energy and Industrial Strategy,Intellectual Property Office,11/04/2022,Pay Costs,Innovation Directorate,Alexander Mann Solutions Limited,2538181,705.96,Not Applicable
Department for Business Energy and Industrial Strategy,Intellectual Property Office,11/04/2022,Pay Costs,Finance Directorate,Alexander Mann Solutions Limited,2538183,"2,985.66",Not Applicable
Department for Business Energy and Industrial Strategy,Intellectual Property Office,11/04/2022,Pay Costs,Finance Directorate,Alexander Mann Solutions Limited,2538184,"2,985.66",Not Applicable
Department for Business Energy and Industrial Strategy,Intellectual Property Office,11/04/2022,Pay Costs,IT Directorate,Alexander Mann Solutions Limited,2538185,"2,440.62",Not Applicable
Department for Business Energy and Industrial Strategy,Intellectual Property Office,11/04/2022,Pay Costs,Trade Mark Directorate,Alexander Mann Solutions Limited,2538186,516.60,Not Applicable
Department for Business Energy and Industrial Strategy,Intellectual Property Office,11/04/2022,Pay Costs,IT Directorate,Alexander Mann Solutions Limited,2538187,"3,465.30",Not Applicable
Department for Business Energy and Industrial Strategy,Intellectual Property Office,11/04/2022,Pay Costs,IT Directorate,Alexander Mann Solutions Limited,2538188,705.96,Not Applicable
Department for Business Energy and Industrial Strategy,Intellectual Property Office,11/04/2022,Pay Costs,Patent Directorate,Alexander Mann Solutions Limited,2538189,532.99,Not Applicable
Department for Business Energy and Industrial Strategy,Intellectual Property Office,11/04/2022,Pay Costs,Projects,Alexander Mann Solutions Limited,2538190,"1,764.17",Not Applicable
Department for Business Energy and Industrial Strategy,Intellectual Property Office,11/04/2022,Pay Costs,Projects,Alexander Mann Solutions Limited,2538191,"3,581.76",Not Applicable
Department for Business Energy and Industrial Strategy,Intellectual Property Office,11/04/2022,Pay Costs,Patent Directorate,Alexander Mann Solutions Limited,2538192,625.54,Not Applicable
Department for Business Energy and Industrial Strategy,Intellectual Property Office,11/04/2022,Pay Costs,People Places & Serv Directorate,Alexander Mann Solutions Limited,2538193,686.88,Not Applicable
Department for Business Energy and Industrial Strategy,Intellectual Property Office,12/04/2022,Pay Costs,Patent Directorate,Alexander Mann Solutions Limited,2538194,"1,030.32",Not Applicable
Department for Business Energy and Industrial Strategy,Intellectual Property Office,11/04/2022,Pay Costs,Patent Directorate,Alexander Mann Solutions Limited,2538195,705.96,Not Applicable
Department for Business Energy and Industrial Strategy,Intellectual Property Office,11/04/2022,Pay Costs,Patent Directorate,Alexander Mann Solutions Limited,2538196,705.96,Not Applicable
Department for Business Energy and Industrial Strategy,Intellectual Property Office,11/04/2022,Pay Costs,Patent Directorate,Alexander Mann Solutions Limited,2538197,651.60,Not Applicable
Department for Business Energy and Industrial Strategy,Intellectual Property Office,11/04/2022,Pay Costs,Finance Directorate,Alexander Mann Solutions Limited,2538199,648.72,Not Applicable
Department for Business Energy and Industrial Strategy,Intellectual Property Office,21/04/2022,Pay Costs,Trade Mark Directorate,Alexander Mann Solutions Limited,2543347,"1,125.72",Not Applicable
Department for Business Energy and Industrial Strategy,Intellectual Property Office,21/04/2022,Pay Costs,Trade Mark Directorate,Alexander Mann Solutions Limited,2543348,"1,268.82",Not Applicable
Department for Business Energy and Industrial Strategy,Intellectual Property Office,21/04/2022,Pay Costs,Trade Mark Directorate,Alexander Mann Solutions Limited,2543349,705.96,Not Applicable
Department for Business Energy and Industrial Strategy,Intellectual Property Office,21/04/2022,Pay Costs,Trade Mark Directorate,Alexander Mann Solutions Limited,2543350,"1,335.60",Not Applicable
Department for Business Energy and Industrial Strategy,Intellectual Property Office,19/04/2022,Pay Costs,IT Directorate,Alexander Mann Solutions Limited,2543351,"3,880.39",Not Applicable
Department for Business Energy and Industrial Strategy,Intellectual Property Office,19/04/2022,Pay Costs,IT Directorate,Alexander Mann Solutions Limited,2543352,"3,599.58",Not Applicable
Department for Business Energy and Industrial Strategy,Intellectual Property Office,19/04/2022,Pay Costs,IT Directorate,Alexander Mann Solutions Limited,2543353,"2,255.58",Not Applicable
Department for Business Energy and Industrial Strategy,Intellectual Property Office,20/04/2022,Pay Costs,Patent Directorate,Alexander Mann Solutions Limited,2543354,645.30,Not Applicable
Department for Business Energy and Industrial Strategy,Intellectual Property Office,20/04/2022,Pay Costs,Patent Directorate,Alexander Mann Solutions Limited,2543355,616.27,Not Applicable
Department for Business Energy and Industrial Strategy,Intellectual Property Office,19/04/2022,Pay Costs,IT Directorate,Alexander Mann Solutions Limited,2543356,"3,629.22",Not Applicable
Department for Business Energy and Industrial Strategy,Intellectual Property Office,19/04/2022,Pay Costs,Projects,Alexander Mann Solutions Limited,2543357,"4,357.50",Not Applicable
Department for Business Energy and Industrial Strategy,Intellectual Property Office,20/04/2022,Pay Costs,Patent Directorate,Alexander Mann Solutions Limited,2543358,645.30,Not Applicable
Department for Business Energy and Industrial Strategy,Intellectual Property Office,19/04/2022,Pay Costs,IT Directorate,Alexander Mann Solutions Limited,2543359,"3,024.30",Not Applicable
Department for Business Energy and Industrial Strategy,Intellectual Property Office,19/04/2022,Pay Costs,IT Directorate,Alexander Mann Solutions Limited,2543360,"2,289.98",Not Applicable
Department for Business Energy and Industrial Strategy,Intellectual Property Office,21/04/2022,Pay Costs,Patent Directorate,Alexander Mann Solutions Limited,2543361,642.91,Not Applicable
Department for Business Energy and Industrial Strategy,Intellectual Property Office,21/04/2022,Pay Costs,Patent Directorate,Alexander Mann Solutions Limited,2543362,599.47,Not Applicable
Department for Business Energy and Industrial Strategy,Intellectual Property Office,21/04/2022,Pay Costs,Patent Directorate,Alexander Mann Solutions Limited,2543363,521.28,Not Applicable
Department for Business Energy and Industrial Strategy,Intellectual Property Office,19/04/2022,Pay Costs,IT Directorate,Alexander Mann Solutions Limited,2543364,"2,417.90",Not Applicable
Department for Business Energy and Industrial Strategy,Intellectual Property Office,19/04/2022,Pay Costs,Patent Directorate,Alexander Mann Solutions Limited,2543365,651.60,Not Applicable
Department for Business Energy and Industrial Strategy,Intellectual Property Office,19/04/2022,Pay Costs,Patent Directorate,Alexander Mann Solutions Limited,2543367,651.60,Not Applicable
Department for Business Energy and Industrial Strategy,Intellectual Property Office,19/04/2022,Pay Costs,Projects,Alexander Mann Solutions Limited,2543368,"3,465.30",Not Applicable
Department for Business Energy and Industrial Strategy,Intellectual Property Office,19/04/2022,Pay Costs,Projects,Alexander Mann Solutions Limited,2543369,"3,150.30",Not Applicable
Department for Business Energy and Industrial Strategy,Intellectual Property Office,19/04/2022,Pay Costs,Projects,Alexander Mann Solutions Limited,2543370,"4,090.44",Not Applicable
Department for Business Energy and Industrial Strategy,Intellectual Property Office,19/04/2022,Pay Costs,Projects,Alexander Mann Solutions Limited,2543371,"2,999.70",Not Applicable
Department for Business Energy and Industrial Strategy,Intellectual Property Office,19/04/2022,Pay Costs,Projects,Alexander Mann Solutions Limited,2543372,"4,095.36",Not Applicable
Department for Business Energy and Industrial Strategy,Intellectual Property Office,19/04/2022,Pay Costs,Projects,Alexander Mann Solutions Limited,2543373,"4,090.44",Not Applicable
Department for Business Energy and Industrial Strategy,Intellectual Property Office,19/04/2022,Pay Costs,Patent Directorate,Alexander Mann Solutions Limited,2543374,632.35,Not Applicable
Department for Business Energy and Industrial Strategy,Intellectual Property Office,20/04/2022,Pay Costs,Patent Directorate,Alexander Mann Solutions Limited,2543375,622.91,Not Applicable
Department for Business Energy and Industrial Strategy,Intellectual Property Office,19/04/2022,Pay Costs,Innovation Directorate,Alexander Mann Solutions Limited,2543376,572.40,Not Applicable
Department for Business Energy and Industrial Strategy,Intellectual Property Office,19/04/2022,Pay Costs,Finance Directorate,Alexander Mann Solutions Limited,2543378,705.96,Not Applicable
Department for Business Energy and Industrial Strategy,Intellectual Property Office,19/04/2022,Pay Costs,Finance Directorate,Alexander Mann Solutions Limited,2543379,"2,985.66",Not Applicable
Department for Business Energy and Industrial Strategy,Intellectual Property Office,19/04/2022,Pay Costs,Finance Directorate,Alexander Mann Solutions Limited,2543380,"2,985.66",Not Applicable
Department for Business Energy and Industrial Strategy,Intellectual Property Office,19/04/2022,Pay Costs,IT Directorate,Alexander Mann Solutions Limited,2543381,"2,440.62",Not Applicable
Department for Business Energy and Industrial Strategy,Intellectual Property Office,19/04/2022,Pay Costs,IT Directorate,Alexander Mann Solutions Limited,2543382,705.96,Not Applicable
Department for Business Energy and Industrial Strategy,Intellectual Property Office,19/04/2022,Pay Costs,Patent Directorate,Alexander Mann Solutions Limited,2543383,616.27,Not Applicable
Department for Business Energy and Industrial Strategy,Intellectual Property Office,19/04/2022,Pay Costs,Projects,Alexander Mann Solutions Limited,2543384,"4,410.42",Not Applicable
Department for Business Energy and Industrial Strategy,Intellectual Property Office,19/04/2022,Pay Costs,Projects,Alexander Mann Solutions Limited,2543385,"3,663.25",Not Applicable
Department for Business Energy and Industrial Strategy,Intellectual Property Office,19/04/2022,Pay Costs,IT Directorate,Alexander Mann Solutions Limited,2543386,"3,528.34",Not Applicable
Department for Business Energy and Industrial Strategy,Intellectual Property Office,19/04/2022,Pay Costs,Patent Directorate,Alexander Mann Solutions Limited,2543387,608.16,Not Applicable
Department for Business Energy and Industrial Strategy,Intellectual Property Office,19/04/2022,Pay Costs,Patent Directorate,Alexander Mann Solutions Limited,2543388,651.60,Not Applicable
Department for Business Energy and Industrial Strategy,Intellectual Property Office,19/04/2022,Pay Costs,People Places & Serv Directorate,Alexander Mann Solutions Limited,2543389,705.96,Not Applicable
Department for Business Energy and Industrial Strategy,Intellectual Property Office,19/04/2022,Pay Costs,Patent Directorate,Alexander Mann Solutions Limited,2543390,572.40,Not Applicable
Department for Business Energy and Industrial Strategy,Intellectual Property Office,19/04/2022,Pay Costs,Patent Directorate,Alexander Mann Solutions Limited,2543392,705.96,Not Applicable
Department for Business Energy and Industrial Strategy,Intellectual Property Office,20/04/2022,Pay Costs,Patent Directorate,Alexander Mann Solutions Limited,2543393,651.60,Not Applicable
Department for Business Energy and Industrial Strategy,Intellectual Property Office,19/04/2022,Pay Costs,IT Directorate,Alexander Mann Solutions Limited,2543394,"3,402.29",Not Applicable
Department for Business Energy and Industrial Strategy,Intellectual Property Office,20/04/2022,Pay Costs,Finance Directorate,Alexander Mann Solutions Limited,2543395,667.80,Not Applicable
Department for Business Energy and Industrial Strategy,Intellectual Property Office,25/04/2022,Pay Costs,Trade Mark Directorate,Alexander Mann Solutions Limited,2547878,572.40,Not Applicable
Department for Business Energy and Industrial Strategy,Intellectual Property Office,25/04/2022,Pay Costs,Trade Mark Directorate,Alexander Mann Solutions Limited,2547879,562.86,Not Applicable
Department for Business Energy and Industrial Strategy,Intellectual Property Office,25/04/2022,Pay Costs,Trade Mark Directorate,Alexander Mann Solutions Limited,2547881,572.40,Not Applicable
Department for Business Energy and Industrial Strategy,Intellectual Property Office,26/04/2022,Pay Costs,IT Directorate,Alexander Mann Solutions Limited,2547883,"3,079.68",Not Applicable
Department for Business Energy and Industrial Strategy,Intellectual Property Office,25/04/2022,Pay Costs,IT Directorate,Alexander Mann Solutions Limited,2547885,"2,879.66",Not Applicable
Department for Business Energy and Industrial Strategy,Intellectual Property Office,26/04/2022,Pay Costs,IT Directorate,Alexander Mann Solutions Limited,2547886,"4,090.44",Not Applicable
Department for Business Energy and Industrial Strategy,Intellectual Property Office,26/04/2022,Pay Costs,Patent Directorate,Alexander Mann Solutions Limited,2547888,881.05,Not Applicable
Department for Business Energy and Industrial Strategy,Intellectual Property Office,25/04/2022,Pay Costs,IT Directorate,Alexander Mann Solutions Limited,2547891,"2,903.38",Not Applicable
Department for Business Energy and Industrial Strategy,Intellectual Property Office,25/04/2022,Pay Costs,IT Directorate,Alexander Mann Solutions Limited,2547901,"2,100.11",Not Applicable
Department for Business Energy and Industrial Strategy,Intellectual Property Office,25/04/2022,Pay Costs,IT Directorate,Alexander Mann Solutions Limited,2547902,"2,956.46",Not Applicable
Department for Business Energy and Industrial Strategy,Intellectual Property Office,25/04/2022,Pay Costs,Patent Directorate,Alexander Mann Solutions Limited,2547903,521.28,Not Applicable
Department for Business Energy and Industrial Strategy,Intellectual Property Office,25/04/2022,Pay Costs,Patent Directorate,Alexander Mann Solutions Limited,2547904,521.28,Not Applicable
Department for Business Energy and Industrial Strategy,Intellectual Property Office,25/04/2022,Pay Costs,Patent Directorate,Alexander Mann Solutions Limited,2547905,521.28,Not Applicable
Department for Business Energy and Industrial Strategy,Intellectual Property Office,25/04/2022,Pay Costs,Projects,Alexander Mann Solutions Limited,2547906,"2,772.24",Not Applicable
Department for Business Energy and Industrial Strategy,Intellectual Property Office,25/04/2022,Pay Costs,Projects,Alexander Mann Solutions Limited,2547907,"2,520.24",Not Applicable
Department for Business Energy and Industrial Strategy,Intellectual Property Office,26/04/2022,Pay Costs,IT Directorate,Alexander Mann Solutions Limited,2547908,"7,371.65",Not Applicable
Department for Business Energy and Industrial Strategy,Intellectual Property Office,25/04/2022,Pay Costs,Projects,Alexander Mann Solutions Limited,2547909,"3,272.35",Not Applicable
Department for Business Energy and Industrial Strategy,Intellectual Property Office,25/04/2022,Pay Costs,Projects,Alexander Mann Solutions Limited,2547910,"2,399.76",Not Applicable
Department for Business Energy and Industrial Strategy,Intellectual Property Office,25/04/2022,Pay Costs,Projects,Alexander Mann Solutions Limited,2547911,"4,914.43",Not Applicable
Department for Business Energy and Industrial Strategy,Intellectual Property Office,25/04/2022,Pay Costs,Projects,Alexander Mann Solutions Limited,2547912,"3,272.35",Not Applicable
Department for Business Energy and Industrial Strategy,Intellectual Property Office,25/04/2022,Pay Costs,Finance Directorate,Alexander Mann Solutions Limited,2547916,572.40,Not Applicable
Department for Business Energy and Industrial Strategy,Intellectual Property Office,25/04/2022,Pay Costs,Finance Directorate,Alexander Mann Solutions Limited,2547917,"2,388.53",Not Applicable
Department for Business Energy and Industrial Strategy,Intellectual Property Office,25/04/2022,Pay Costs,Finance Directorate,Alexander Mann Solutions Limited,2547918,"2,388.53",Not Applicable
Department for Business Energy and Industrial Strategy,Intellectual Property Office,25/04/2022,Pay Costs,IT Directorate,Alexander Mann Solutions Limited,2547919,"1,952.50",Not Applicable
Department for Business Energy and Industrial Strategy,Intellectual Property Office,25/04/2022,Pay Costs,IT Directorate,Alexander Mann Solutions Limited,2547920,"6,237.54",Not Applicable
Department for Business Energy and Industrial Strategy,Intellectual Property Office,25/04/2022,Pay Costs,Projects,Alexander Mann Solutions Limited,2547922,"3,528.34",Not Applicable
Department for Business Energy and Industrial Strategy,Intellectual Property Office,25/04/2022,Pay Costs,Projects,Alexander Mann Solutions Limited,2547923,"2,323.26",Not Applicable
Department for Business Energy and Industrial Strategy,Intellectual Property Office,26/04/2022,Pay Costs,IT Directorate,Alexander Mann Solutions Limited,2547924,"4,410.42",Not Applicable
Department for Business Energy and Industrial Strategy,Intellectual Property Office,26/04/2022,Pay Costs,IT Directorate,Alexander Mann Solutions Limited,2547925,"6,663.23",Not Applicable
Department for Business Energy and Industrial Strategy,Intellectual Property Office,25/04/2022,Pay Costs,People Places & Serv Directorate,Alexander Mann Solutions Limited,2547928,672.58,Not Applicable
Department for Business Energy and Industrial Strategy,Intellectual Property Office,25/04/2022,Pay Costs,Patent Directorate,Alexander Mann Solutions Limited,2547931,562.86,Not Applicable
Department for Business Energy and Industrial Strategy,Intellectual Property Office,25/04/2022,Pay Costs,Patent Directorate,Alexander Mann Solutions Limited,2547932,521.28,Not Applicable
Department for Business Energy and Industrial Strategy,Intellectual Property Office,25/04/2022,Pay Costs,Patent Directorate,Alexander Mann Solutions Limited,2547933,705.96,Not Applicable
Department for Business Energy and Industrial Strategy,Intellectual Property Office,25/04/2022,Pay Costs,IT Directorate,Alexander Mann Solutions Limited,2547934,"3,276.29",Not Applicable
Department for Business Energy and Industrial Strategy,Intellectual Property Office,25/04/2022,Pay Costs,Finance Directorate,Alexander Mann Solutions Limited,2547935,572.40,Not Applicable
Department for Business Energy and Industrial Strategy,Intellectual Property Office,25/04/2022,Pay Costs,Patent Directorate,Alexander Mann Solutions Limited,2547936,521.28,Not Applicable
Department for Business Energy and Industrial Strategy,Intellectual Property Office,26/04/2022,Pay Costs,Trade Mark Directorate,Alexander Mann Solutions Limited,2547937,"1,435.78",Not Applicable
Department for Business Energy and Industrial Strategy,Intellectual Property Office,05/04/2022,Pay Costs,IT Directorate,Alexander Mann Solutions Limited,31758,"-2,772.24",Not Applicable
Department for Business Energy and Industrial Strategy,Intellectual Property Office,06/04/2022,Supporting UK Business,Innovation Directorate,JA Kemp,914372,"2,500.00",Not Applicable
Department for Business Energy and Industrial Strategy,Intellectual Property Office,06/04/2022,Supporting UK Business,Innovation Directorate,JA Kemp,914374,"2,500.00",Not Applicable
Department for Business Energy and Industrial Strategy,Intellectual Property Office,27/04/2022,Miscellaneous Expenses General,People Places & Serv Directorate,Cyberis Limited,INV02269,"9,120.00",Not Applicable
Department for Business Energy and Industrial Strategy,Intellectual Property Office,05/04/2022,Staff Costs,People Places & Serv Directorate,Eliesha Training Ltd,22874,"1,188.00",Not Applicable
Department for Business Energy and Industrial Strategy,Intellectual Property Office,22/04/2022,Staff Costs,People Places & Serv Directorate,Eliesha Training Ltd,22902,594.00,Not Applicable
Department for Business Energy and Industrial Strategy,Intellectual Property Office,19/04/2022,Supporting UK Business,Innovation Directorate,Yeadon IP Limited,6192,"2,500.00",Not Applicable
Department for Business Energy and Industrial Strategy,Intellectual Property Office,05/04/2022,Supporting UK Business,Copyright and Enforcement Directorate,ALAN CRONIN,3042022,"2,000.00",Not Applicable
Department for Business Energy and Industrial Strategy,Intellectual Property Office,08/04/2022,Accommodation,People Places & Serv Directorate,Government Property Agency,00000001/17094,"2,923.18",Not Applicable
Department for Business Energy and Industrial Strategy,Intellectual Property Office,08/04/2022,Accommodation,People Places & Serv Directorate,Government Property Agency,00000001/17094,"144,559.25",Not Applicable
Department for Business Energy and Industrial Strategy,Intellectual Property Office,01/04/2022,Miscellaneous Expenses General,People Places & Serv Directorate,Health Management Ltd,INV535415,556.78,Not Applicable
Department for Business Energy and Industrial Strategy,Intellectual Property Office,19/04/2022,Marketing & Publicity,Innovation Directorate,Hub Exhibitions Limited,INV-0915,"8,400.00",Not Applicable
Department for Business Energy and Industrial Strategy,Intellectual Property Office,04/04/2022,Other FA at Cost,IT Directorate,Broadberry Data Systems Ltd,81915,"36,331.39",Not Applicable
Department for Business Energy and Industrial Strategy,Intellectual Property Office,08/04/2022,Marketing & Publicity,Innovation Directorate,Hootsuite Inc.,INV-2010197812,"5,520.00",Not Applicable
Department for Business Energy and Industrial Strategy,Intellectual Property Office,11/04/2022,Supporting UK Business,Innovation Directorate,Taylor Vinters,4101365,"5,000.00",Not Applicable
Department for Business Energy and Industrial Strategy,Intellectual Property Office,11/04/2022,Staff Costs,People Places & Serv Directorate,Dyslexia Box Limited,8535,"1,254.00",Not Applicable
Department for Business Energy and Industrial Strategy,Intellectual Property Office,01/04/2022,Supporting UK Business,Innovation Directorate,S William Wallace & Co,1217,"5,000.00",Not Applicable
Department for Business Energy and Industrial Strategy,Intellectual Property Office,08/04/2022,Supporting UK Business,Innovation Directorate,Maucher Jenkins,554268,"5,000.00",Not Applicable
Department for Business Energy and Industrial Strategy,Intellectual Property Office,07/04/2022,Marketing & Publicity,Innovation Directorate,AIMediaData Limited,INV39044,"5,400.00",Not Applicable
Department for Business Energy and Industrial Strategy,Intellectual Property Office,27/04/2022,Marketing & Publicity,People Places & Serv Directorate,Living With Disability,4212,720.00,Not Applicable
Department for Business Energy and Industrial Strategy,Intellectual Property Office,21/04/2022,Supporting UK Business,Copyright and Enforcement Directorate,Chartered Trading Standards Institute,NTSB-LC-0106-21,"4,029.15",Not Applicable
Department for Business Energy and Industrial Strategy,Intellectual Property Office,08/04/2022,Legal & Hearings,Trade Mark Directorate,8 New Square,INV10673MH1030,720.00,Not Applicable
Department for Business Energy and Industrial Strategy,Intellectual Property Office,27/04/2022,Office Machinery,People Places & Serv Directorate,Ricoh UK Ltd,102010942,"35,366.49",Not Applicable
Department for Business Energy and Industrial Strategy,Intellectual Property Office,27/04/2022,Office Machinery,People Places & Serv Directorate,Ricoh UK Ltd,102012856,"6,795.73",Not Applicable
Department for Business Energy and Industrial Strategy,Intellectual Property Office,08/04/2022,Legal & Hearings,Trade Mark Directorate,Three New Square IP,INV-SB843,564.00,Not Applicable
Department for Business Energy and Industrial Strategy,Intellectual Property Office,08/04/2022,Supporting UK Business,Innovation Directorate,Panoramix Limited,358,"5,000.00",Not Applicable
Department for Business Energy and Industrial Strategy,Intellectual Property Office,05/04/2022,Supporting UK Business,Innovation Directorate,Panoramix Limited,384,"2,500.00",Not Applicable
Department for Business Energy and Industrial Strategy,Intellectual Property Office,29/04/2022,Supporting UK Business,Innovation Directorate,Panoramix Limited,405,"1,400.00",Not Applicable
Department for Business Energy and Industrial Strategy,Intellectual Property Office,08/04/2022,Supporting UK Business,Innovation Directorate,Panoramix Limited,415,"5,000.00",Not Applicable
Department for Business Energy and Industrial Strategy,Intellectual Property Office,25/04/2022,Miscellaneous Expenses General,People Places & Serv Directorate,MHR International UK Ltd,SIN149221,"1,560.00",Not Applicable
Department for Business Energy and Industrial Strategy,Intellectual Property Office,11/04/2022,Office Supplies,People Places & Serv Directorate,Jigsaw24 t/a Jigsaw Systems Ltd,I1393634,"3,240.00",Not Applicable
Department for Business Energy and Industrial Strategy,Intellectual Property Office,19/04/2022,Staff Costs,People Places & Serv Directorate,IRG Advisors T/A Odgers Interim,21004721JRT85705,"12,442.50",Not Applicable
Department for Business Energy and Industrial Strategy,Intellectual Property Office,27/04/2022,Staff Costs,People Places & Serv Directorate,IRG Advisors T/A Odgers Interim,21004780JRT85705,"1,770.00",Not Applicable
Department for Business Energy and Industrial Strategy,Intellectual Property Office,04/04/2022,Pay Costs,Projects,IRG Advisors T/A Odgers Interim,867558,"40,378.80",Not Applicable
Department for Business Energy and Industrial Strategy,Intellectual Property Office,19/04/2022,Supporting UK Business,Innovation Directorate,Berwins Solicitors,97075,"2,500.00",Not Applicable
Department for Business Energy and Industrial Strategy,Intellectual Property Office,19/04/2022,Supporting UK Business,Innovation Directorate,Concept IP Services Limited,INV-19168,"5,000.00",Not Applicable
Department for Business Energy and Industrial Strategy,Intellectual Property Office,05/04/2022,Supporting UK Business,International Policy Directorate,Rouse & Co International (Overseas) Limi,11130853,"4,500.00",Not Applicable
Department for Business Energy and Industrial Strategy,Intellectual Property Office,05/04/2022,Supporting UK Business,Innovation Directorate,IK-IP Ltd,378,"2,500.00",Not Applicable
Department for Business Energy and Industrial Strategy,Intellectual Property Office,21/04/2022,Supporting UK Business,Innovation Directorate,Indelible IP Limited,1752,"2,500.00",Not Applicable
Department for Business Energy and Industrial Strategy,Intellectual Property Office,05/04/2022,Information Technology,IT Directorate,Hewlett Packard International Bank DAC,4.00901E+11,"5,928.45",Not Applicable
Department for Business Energy and Industrial Strategy,Intellectual Property Office,20/04/2022,Information Technology,IT Directorate,Hewlett Packard International Bank DAC,4.00901E+11,"17,859.29",Not Applicable
Department for Business Energy and Industrial Strategy,Intellectual Property Office,20/04/2022,Information Technology,IT Directorate,Hewlett Packard International Bank DAC,4.00901E+11,"18,113.07",Not Applicable
Department for Business Energy and Industrial Strategy,Intellectual Property Office,07/04/2022,Pay Costs,IT Directorate,Allen Lane LTD,1221146,"6,134.40",Not Applicable
Department for Business Energy and Industrial Strategy,Intellectual Property Office,14/04/2022,Pay Costs,IT Directorate,Allen Lane LTD,1221601,"6,188.82",Not Applicable
Department for Business Energy and Industrial Strategy,Intellectual Property Office,21/04/2022,Pay Costs,IT Directorate,Allen Lane LTD,1222107,"4,951.06",Not Applicable
Department for Business Energy and Industrial Strategy,Intellectual Property Office,28/04/2022,Pay Costs,IT Directorate,Allen Lane LTD,1222533,"4,951.06",Not Applicable
Department for Business Energy and Industrial Strategy,Intellectual Property Office,19/04/2022,Supporting UK Business,Copyright and Enforcement Directorate,College of Policing Ltd,90072415,"5,872.80",Not Applicable
Department for Business Energy and Industrial Strategy,Intellectual Property Office,06/04/2022,Pay Costs,Finance Directorate,Seymour John (Cardiff) Limited,515,"5,414.69",Not Applicable
Department for Business Energy and Industrial Strategy,Intellectual Property Office,19/04/2022,Pay Costs,Finance Directorate,Seymour John (Cardiff) Limited,516,"2,538.24",Not Applicable
Department for Business Energy and Industrial Strategy,Intellectual Property Office,21/04/2022,Pay Costs,Finance Directorate,Seymour John (Cardiff) Limited,517,"1,522.94",Not Applicable
Department for Business Energy and Industrial Strategy,Intellectual Property Office,27/04/2022,Pay Costs,Finance Directorate,Seymour John (Cardiff) Limited,518,"1,522.94",Not Applicable
Department for Business Energy and Industrial Strategy,Intellectual Property Office,19/04/2022,Supporting UK Business,Innovation Directorate,Loven Patents & Trademarks Ltd,20220167,"2,500.00",Not Applicable
Department for Business Energy and Industrial Strategy,Intellectual Property Office,01/04/2022,Supporting UK Business,Innovation Directorate,GWIP Ltd t/a Grey Wolf IP,1308,"2,500.00",Not Applicable
Department for Business Energy and Industrial Strategy,Intellectual Property Office,19/04/2022,Supporting UK Business,Innovation Directorate,GWIP Ltd t/a Grey Wolf IP,1319,"2,500.00",Not Applicable
Department for Business Energy and Industrial Strategy,Intellectual Property Office,20/04/2022,Staff Costs,IT Directorate,IRM UK Strategic IT Training Ltd,220708798,"1,434.00",Not Applicable
Department for Business Energy and Industrial Strategy,Intellectual Property Office,20/04/2022,Other FA at Cost,IT Directorate,Vohkus Limited,IN30866588,"1,093.50",Not Applicable
Department for Business Energy and Industrial Strategy,Intellectual Property Office,13/04/2022,Misc Expenses Finance,Finance Directorate,Worldpay,199869293,"184,188.93",Not Applicable
Department for Business Energy and Industrial Strategy,Intellectual Property Office,27/04/2022,Accommodation,People Places & Serv Directorate,The Meeting Pod Co,TMP-172514,"59,760.92",Not Applicable
Department for Business Energy and Industrial Strategy,Intellectual Property Office,06/04/2022,Staff Costs,IT Directorate,Personal expenses,UK01-2022000162-,"7,194.00",Not Applicable
Department for Business Energy and Industrial Strategy,Intellectual Property Office,27/04/2022,Supporting UK Business,International Policy Directorate,Pickfords,SI139728,"5,371.59",Not Applicable
Department for Business Energy and Industrial Strategy,Intellectual Property Office,04/04/2022,Pay Costs,IT Directorate,Talent International Holdings PTY Limite,61494,"14,940.00",Not Applicable
Department for Business Energy and Industrial Strategy,Intellectual Property Office,04/04/2022,Miscellaneous Expenses General,IT Directorate,Talent International Holdings PTY Limite,61495,"4,200.00",Not Applicable
Department for Business Energy and Industrial Strategy,Intellectual Property Office,04/04/2022,Pay Costs,IT Directorate,Talent International Holdings PTY Limite,61496,"3,600.00",Not Applicable
Department for Business Energy and Industrial Strategy,Intellectual Property Office,12/04/2022,Pay Costs,IT Directorate,Talent International Holdings PTY Limite,61560,"3,600.00",Not Applicable
Department for Business Energy and Industrial Strategy,Intellectual Property Office,19/04/2022,Information Technology,IT Directorate,Mozaic Services Limited,1727,"36,900.00",Not Applicable
Department for Business Energy and Industrial Strategy,Intellectual Property Office,11/04/2022,Accommodation,People Places & Serv Directorate,Style Door Systems,M16437,864.00,Not Applicable
Department for Business Energy and Industrial Strategy,Intellectual Property Office,05/04/2022,Staff Costs,People Places & Serv Directorate,Reichwald Mediation Associates Ltd,SI-246,600.00,Not Applicable
Department for Business Energy and Industrial Strategy,Intellectual Property Office,12/04/2022,Information Technology,IT Directorate,Informatica Software Ltd,10002014,"111,999.66",Not Applicable
Department for Business Energy and Industrial Strategy,Intellectual Property Office,19/04/2022,Supporting UK Business,Innovation Directorate,MW Trademarks,8441,"2,500.00",Not Applicable
Department for Business Energy and Industrial Strategy,Intellectual Property Office,11/04/2022,Staff Costs,People Places & Serv Directorate,IGPP Ltd,9177,"1,584.00",Not Applicable
Department for Business Energy and Industrial Strategy,Intellectual Property Office,04/04/2022,Staff Costs,People Places & Serv Directorate,Inclusive Employers Ltd,IN5031,"5,400.00",Not Applicable
Department for Business Energy and Industrial Strategy,Intellectual Property Office,04/04/2022,Staff Costs,People Places & Serv Directorate,Inclusive Employers Ltd,IN5109,"2,970.00",Not Applicable
Department for Business Energy and Industrial Strategy,Intellectual Property Office,19/04/2022,Miscellaneous Expenses General,Innovation Directorate,Incopro Ltd,ININCL00120,"32,400.00",Not Applicable
Department for Business Energy and Industrial Strategy,Intellectual Property Office,07/04/2022,Information Technology,IT Directorate,TimeTools Limited,SI-2110,"6,236.40",Not Applicable
Department for Business Energy and Industrial Strategy,Intellectual Property Office,06/04/2022,Supporting UK Business,Innovation Directorate,Goodwin Procter (UK) LLP,2039342,"2,500.00",Not Applicable
Department for Business Energy and Industrial Strategy,Intellectual Property Office,19/04/2022,Supporting UK Business,Innovation Directorate,Andrew Clay Legal Limited,2022-361,"2,500.00",Not Applicable
Department for Business Energy and Industrial Strategy,Intellectual Property Office,21/04/2022,Marketing & Publicity,Innovation Directorate,Fortem Retailing Ltd,INV-2783,"8,370.00",Not Applicable
Department for Business Energy and Industrial Strategy,Intellectual Property Office,26/04/2022,Marketing & Publicity,Innovation Directorate,Made By Cooper LTD,41138,"2,340.00",Not Applicable
Department for Business Energy and Industrial Strategy,Intellectual Property Office,28/04/2022,Placement Fees,People Places & Serv Directorate,Linkedin 7803499634,H57720220430dqswphgir,100.73,Not Applicable
Department for Business Energy and Industrial Strategy,Intellectual Property Office,28/04/2022,Other,People Places & Serv Directorate,Amznmktplace,H57720220430gwbxanofe,48.74,Not Applicable
Department for Business Energy and Industrial Strategy,Intellectual Property Office,28/04/2022,Office Stationery,People Places & Serv Directorate,Amznmktplace,H57720220430gxhobxqgm,24.98,Not Applicable
Department for Business Energy and Industrial Strategy,Intellectual Property Office,28/04/2022,Career Development Services,Finance Directorate,Association Of Chartered,H57720220430htxvakckz,136.00,Not Applicable
Department for Business Energy and Industrial Strategy,Intellectual Property Office,28/04/2022,Other,People Places & Serv Directorate,Amznmktplace,H57720220430irzptzvsf,119.87,Not Applicable
Department for Business Energy and Industrial Strategy,Intellectual Property Office,28/04/2022,Network and infrastructure H/W,IT Directorate,Onedirect Uk,H57720220430kxdmoovlj,746.17,Not Applicable
Department for Business Energy and Industrial Strategy,Intellectual Property Office,28/04/2022,Minor Works-Goods,People Places & Serv Directorate,Amznmktplace,H57720220430lncjwjvdq,26.58,Not Applicable
Department for Business Energy and Industrial Strategy,Intellectual Property Office,28/04/2022,Other,People Places & Serv Directorate,Wwwsightandsound.Co.Uk,H57720220430owcehpbbm,726.00,Not Applicable
Department for Business Energy and Industrial Strategy,Intellectual Property Office,28/04/2022,Other,People Places & Serv Directorate,Amznmktplace,H57720220430pblethuik,48.72,Not Applicable
Department for Business Energy and Industrial Strategy,Intellectual Property Office,28/04/2022,Other,People Places & Serv Directorate,Amznmktplace,H57720220430xbpbttfhf,48.72,Not Applicable
Department for Business Energy and Industrial Strategy,Intellectual Property Office,27/04/2022,Office Stationery,People Places & Serv Directorate,Xma Ltd,H57720220429eqdncahqm,829.51,Not Applicable
Department for Business Energy and Industrial Strategy,Intellectual Property Office,27/04/2022,Education Campaign,Innovation Directorate,Enterprise Rent A Car,H57720220429fmbhemmfm,149.97,Not Applicable
Department for Business Energy and Industrial Strategy,Intellectual Property Office,26/04/2022,Overseas Patent Specifications,Patent Directorate,Spie Org,H57720220429fscntynpb,20.76,Not Applicable
Department for Business Energy and Industrial Strategy,Intellectual Property Office,27/04/2022,Career Development Services,IT Directorate,Eb *what Is Data Liter,H57720220429kkjpmimrj,90.00,Not Applicable
Department for Business Energy and Industrial Strategy,Intellectual Property Office,27/04/2022,Perpetual Licences,IT Directorate,Fs *dolphinaccess,H57720220429kzqpvpidq,2388.00,Not Applicable
Department for Business Energy and Industrial Strategy,Intellectual Property Office,27/04/2022,Education Campaign,Innovation Directorate,Easyjet,H57720220429ldmgwyplo,14.98,Not Applicable
Department for Business Energy and Industrial Strategy,Intellectual Property Office,27/04/2022,Office Stationery,People Places & Serv Directorate,Xma Ltd,H57720220429pxixlhxbd,360.05,Not Applicable
Department for Business Energy and Industrial Strategy,Intellectual Property Office,28/04/2022,Office Stationery,People Places & Serv Directorate,Amznmktplace,H57720220429rlsurcocm,15.56,Not Applicable
Department for Business Energy and Industrial Strategy,Intellectual Property Office,27/04/2022,Office Stationery,People Places & Serv Directorate,Margin Services Limite,H57720220429yoizsusgg,39.98,Not Applicable
Department for Business Energy and Industrial Strategy,Intellectual Property Office,26/04/2022,Office Stationery,People Places & Serv Directorate,Epidemic Sound Ab,H57720220428bhmrlmcui,46.80,Not Applicable
Department for Business Energy and Industrial Strategy,Intellectual Property Office,26/04/2022,Entertainment,Copyright and Enforcement Directorate,Paypal,H57720220428hughkdbuc,64.00,Not Applicable
Department for Business Energy and Industrial Strategy,Intellectual Property Office,26/04/2022,Placement Fees,People Places & Serv Directorate,Linkedin-779,H57720220428iqxyrhxnb,110.94,Not Applicable
Department for Business Energy and Industrial Strategy,Intellectual Property Office,27/04/2022,Overseas Patent Specifications,Patent Directorate,Ama*journals,H57720220428ohxsrbxim,30.00,Not Applicable
Department for Business Energy and Industrial Strategy,Intellectual Property Office,26/04/2022,Office Stationery,People Places & Serv Directorate,Amznmktplace,H57720220428rhoymyhxh,16.98,Not Applicable
Department for Business Energy and Industrial Strategy,Intellectual Property Office,27/04/2022,Office Stationery,People Places & Serv Directorate,Amznmktplace,H57720220428wxnjjecrt,26.89,Not Applicable
Department for Business Energy and Industrial Strategy,Intellectual Property Office,25/04/2022,Office Stationery,People Places & Serv Directorate,Amznmktplace,H57720220427nftovnjvh,18.98,Not Applicable
Department for Business Energy and Industrial Strategy,Intellectual Property Office,25/04/2022,Career Development Services,IT Directorate,Peoplecert,H57720220427uvtdjlusu,83.00,Not Applicable
Department for Business Energy and Industrial Strategy,Intellectual Property Office,26/04/2022,Office Stationery,People Places & Serv Directorate,Amznmktplace,H57720220427ydnryvrxv,38.99,Not Applicable
Department for Business Energy and Industrial Strategy,Intellectual Property Office,22/04/2022,Overseas Patent Specifications,Patent Directorate,Association For Computing,H57720220426nyofkghec,11.86,Not Applicable
Department for Business Energy and Industrial Strategy,Intellectual Property Office,22/04/2022,Overseas Patent Specifications,Patent Directorate,Association For Computing,H57720220426slkbvvrug,11.86,Not Applicable
Department for Business Energy and Industrial Strategy,Intellectual Property Office,23/04/2022,Placement Fees,People Places & Serv Directorate,Linkedin 7787723734,H57720220426tbmmeftxc,115.32,Not Applicable
Department for Business Energy and Industrial Strategy,Intellectual Property Office,24/04/2022,Office Stationery,People Places & Serv Directorate,Amznmktplace,H57720220426vbswrzwku,22.98,Not Applicable
Department for Business Energy and Industrial Strategy,Intellectual Property Office,24/04/2022,T&S UK,Innovation Directorate,Amznmktplace,H57720220426vdkdgrdrn,361.64,Not Applicable
Department for Business Energy and Industrial Strategy,Intellectual Property Office,21/04/2022,Office Stationery,People Places & Serv Directorate,Keytracker Ltd,H57720220423bulrqmyhj,24.84,Not Applicable
Department for Business Energy and Industrial Strategy,Intellectual Property Office,20/04/2022,Seminars and Confereces,Copyright and Enforcement Directorate,Www.Westminster-Briefi,H57720220423dgvmprnpb,354.00,Not Applicable
Department for Business Energy and Industrial Strategy,Intellectual Property Office,21/04/2022,Office Stationery,People Places & Serv Directorate,Www.Screwfix.Com,H57720220423fslgyquui,32.98,Not Applicable
Department for Business Energy and Industrial Strategy,Intellectual Property Office,21/04/2022,Placement Fees,People Places & Serv Directorate,Linkedin 7780314594,H57720220423lghwvpfos,91.16,Not Applicable
Department for Business Energy and Industrial Strategy,Intellectual Property Office,20/04/2022,Seminars and Confereces,Copyright and Enforcement Directorate,Www.Westminster-Briefi,H57720220423lozdkymhp,354.00,Not Applicable
Department for Business Energy and Industrial Strategy,Intellectual Property Office,21/04/2022,Office Stationery,People Places & Serv Directorate,Pc Mobility Services Li,H57720220423lpjrohojk,264.00,Not Applicable
Department for Business Energy and Industrial Strategy,Intellectual Property Office,20/04/2022,Seminars and Confereces,Copyright and Enforcement Directorate,Www.Westminster-Briefi,H57720220423pecnfzvlt,354.00,Not Applicable
Department for Business Energy and Industrial Strategy,Intellectual Property Office,20/04/2022,Seminars and Confereces,Copyright and Enforcement Directorate,Www.Westminster-Briefi,H57720220423xwhdfrhwo,354.00,Not Applicable
Department for Business Energy and Industrial Strategy,Intellectual Property Office,20/04/2022,T&S O-seas excl EPOQUE,Trade Mark Directorate,Intl Trademark Assoc,H57720220422kuhtrljqn,495.83,Not Applicable
Department for Business Energy and Industrial Strategy,Intellectual Property Office,20/04/2022,T&S O-seas excl EPOQUE,Trade Mark Directorate,Intl Trademark Assoc,H57720220422kyscjcttt,495.83,Not Applicable
Department for Business Energy and Industrial Strategy,Intellectual Property Office,20/04/2022,Office Stationery,People Places & Serv Directorate,Amazon.Co.Uk,H57720220422sscemgtrh,9.94,Not Applicable
Department for Business Energy and Industrial Strategy,Intellectual Property Office,20/04/2022,Overseas Patent Specifications,Patent Directorate,Association For Computing,H57720220422tijiwphdg,11.91,Not Applicable
Department for Business Energy and Industrial Strategy,Intellectual Property Office,19/04/2022,Minor Works-Goods,People Places & Serv Directorate,Seton,H57720220421brtupskbr,24.40,Not Applicable
Department for Business Energy and Industrial Strategy,Intellectual Property Office,18/04/2022,Overseas Patent Specifications,Patent Directorate,Spie Org,H57720220421pssewcjyg,26.66,Not Applicable
Department for Business Energy and Industrial Strategy,Intellectual Property Office,19/04/2022,Office Stationery,People Places & Serv Directorate,Colour Data UK Ltd,H57720220421vhtrktxpq,178.74,Not Applicable
Department for Business Energy and Industrial Strategy,Intellectual Property Office,16/04/2022,Placement Fees,People Places & Serv Directorate,Linkedin-776,H57720220419shlmcqpun,67.49,Not Applicable
Department for Business Energy and Industrial Strategy,Intellectual Property Office,13/04/2022,Perpetual Licences,IT Directorate,Paypal,H57720220415lhpzghhke,255.60,Not Applicable
Department for Business Energy and Industrial Strategy,Intellectual Property Office,13/04/2022,Minor Works-Goods,People Places & Serv Directorate,Amznmktplace,H57720220415nktdfvvsk,42.97,Not Applicable
Department for Business Energy and Industrial Strategy,Intellectual Property Office,13/04/2022,Office Stationery,People Places & Serv Directorate,Www.Bsigroup.Com,H57720220415ssyrwqpgt,688.80,Not Applicable
Department for Business Energy and Industrial Strategy,Intellectual Property Office,12/04/2022,Minor Works-Goods,People Places & Serv Directorate,Www.Screwfix.Com,H57720220414catpcxtot,26.99,Not Applicable
Department for Business Energy and Industrial Strategy,Intellectual Property Office,12/04/2022,Office Stationery,People Places & Serv Directorate,Healthy Workstations Ltd,H57720220414cyvlxwzjk,76.57,Not Applicable
Department for Business Energy and Industrial Strategy,Intellectual Property Office,11/04/2022,Perpetual Licences,IT Directorate,Paypal,H57720220414dvpofvoik,100.73,Not Applicable
Department for Business Energy and Industrial Strategy,Intellectual Property Office,12/04/2022,Perpetual Licences,IT Directorate,Paypal,H57720220414hrxvfjxus,840.00,Not Applicable
Department for Business Energy and Industrial Strategy,Intellectual Property Office,12/04/2022,Office Stationery,People Places & Serv Directorate,Wm Morrisons Store,H57720220414kyklwvcwr,43.90,Not Applicable
Department for Business Energy and Industrial Strategy,Intellectual Property Office,12/04/2022,Other,People Places & Serv Directorate,Mhfa Wales Ltd,H57720220414lrptvwpdt,267.00,Not Applicable
Department for Business Energy and Industrial Strategy,Intellectual Property Office,12/04/2022,Office Stationery,People Places & Serv Directorate,Amznmktplace,H57720220414mjigygzge,29.25,Not Applicable
Department for Business Energy and Industrial Strategy,Intellectual Property Office,12/04/2022,Office Stationery,People Places & Serv Directorate,Amznmktplace,H57720220414szrbnjhsl,26.98,Not Applicable
Department for Business Energy and Industrial Strategy,Intellectual Property Office,12/04/2022,Perpetual Licences,IT Directorate,Dri*,H57720220414vylhhryiv,996.00,Not Applicable
Department for Business Energy and Industrial Strategy,Intellectual Property Office,11/04/2022,Overseas Patent Specifications,Patent Directorate,Wiley,H57720220414yecgyghfz,33.32,Not Applicable
Department for Business Energy and Industrial Strategy,Intellectual Property Office,11/04/2022,Office Stationery,People Places & Serv Directorate,Amazon.Co.Uk,H57720220413bchhtdpwx,42.85,Not Applicable
Department for Business Energy and Industrial Strategy,Intellectual Property Office,11/04/2022,Career Development Services,International Policy Directorate,Cigna,H57720220413grvprxvvl,3580.77,Not Applicable
Department for Business Energy and Industrial Strategy,Intellectual Property Office,10/04/2022,Legal Consultancy,IT Directorate,Ipo,H57720220413pxbsntlsd,170.00,Not Applicable
Department for Business Energy and Industrial Strategy,Intellectual Property Office,11/04/2022,Office Stationery,People Places & Serv Directorate,Proactive UK Ltd,H57720220413ruzglssxe,1933.20,Not Applicable
Department for Business Energy and Industrial Strategy,Intellectual Property Office,10/04/2022,Legal Consultancy,IT Directorate,Ipo,H57720220413rwcoymsqo,170.00,Not Applicable
Department for Business Energy and Industrial Strategy,Intellectual Property Office,11/04/2022,Office Stationery,People Places & Serv Directorate,Amazon.Co.Uk,H57720220413twztmfdzp,171.39,Not Applicable
Department for Business Energy and Industrial Strategy,Intellectual Property Office,09/04/2022,Books,Patent Directorate,Ipo,H57720220412dtqtvcoyb,30.00,Not Applicable
Department for Business Energy and Industrial Strategy,Intellectual Property Office,08/04/2022,Career Development Services,People Places & Serv Directorate,Www.Trainingbytesize.C,H57720220412eifaberdt,666.00,Not Applicable
Department for Business Energy and Industrial Strategy,Intellectual Property Office,02/04/2022,Legal Consultancy,IT Directorate,Ipo,H57720220412fyevlqums,-170.00,Not Applicable
Department for Business Energy and Industrial Strategy,Intellectual Property Office,09/04/2022,Placement Fees,People Places & Serv Directorate,Linkedin 7742004924,H57720220412hwktnjrgs,106.13,Not Applicable
Department for Business Energy and Industrial Strategy,Intellectual Property Office,08/04/2022,Career Development Services,Patent Directorate,Biochemical Society,H57720220412kebflkimf,125.00,Not Applicable
Department for Business Energy and Industrial Strategy,Intellectual Property Office,09/04/2022,Legal Consultancy,IT Directorate,Ipo,H57720220412obhrccrqu,5.00,Not Applicable
Department for Business Energy and Industrial Strategy,Intellectual Property Office,10/04/2022,Books,IT Directorate,Amazon.Co.Uk,H57720220412vqvywlzew,74.97,Not Applicable
Department for Business Energy and Industrial Strategy,Intellectual Property Office,08/04/2022,Career Development Services,IT Directorate,Paypal,H57720220412wxbhayksi,125.00,Not Applicable
Department for Business Energy and Industrial Strategy,Intellectual Property Office,08/04/2022,Overseas Patent Specifications,Patent Directorate,Onepetro,H57720220412yfkymayny,9.48,Not Applicable
Department for Business Energy and Industrial Strategy,Intellectual Property Office,08/04/2022,Seminars and Confereces,People Places & Serv Directorate,Cardiff Animation Fest,H57720220412ylihtvkxm,140.00,Not Applicable
Department for Business Energy and Industrial Strategy,Intellectual Property Office,07/04/2022,Office Stationery,People Places & Serv Directorate,My.Morrisons.Com,H57720220410qdymplmgo,20.00,Not Applicable
Department for Business Energy and Industrial Strategy,Intellectual Property Office,07/04/2022,Office Stationery,People Places & Serv Directorate,Epidemic Sound Ab,H57720220410yrkhblojl,46.80,Not Applicable
Department for Business Energy and Industrial Strategy,Intellectual Property Office,07/04/2022,Placement Fees,People Places & Serv Directorate,Linkedin-773,H57720220410zpgpuwwrj,113.17,Not Applicable
Department for Business Energy and Industrial Strategy,Intellectual Property Office,06/04/2022,Other,Copyright and Enforcement Directorate,Surveymonk* T 42434878,H57720220408erdtpvzpl,384.00,Not Applicable
Department for Business Energy and Industrial Strategy,Intellectual Property Office,06/04/2022,Seminars and Confereces,Copyright and Enforcement Directorate,University Of Nottingham,H57720220408hwqxumukf,165.00,Not Applicable
Department for Business Energy and Industrial Strategy,Intellectual Property Office,06/04/2022,Education Campaign,Innovation Directorate,Campaignmonitor,H57720220408nctkomjfs,40.35,Not Applicable
Department for Business Energy and Industrial Strategy,Intellectual Property Office,06/04/2022,Office Stationery,People Places & Serv Directorate,Amazon.Co.Uk,H57720220408nsuupxtur,74.05,Not Applicable
Department for Business Energy and Industrial Strategy,Intellectual Property Office,05/04/2022,Career Development Services,Patent Directorate,Www.Pmgltd.Co.Uk,H57720220407fshxkdksw,828.00,Not Applicable
Department for Business Energy and Industrial Strategy,Intellectual Property Office,05/04/2022,Placement Fees,People Places & Serv Directorate,Linkedin 7727611404,H57720220407kxiwkuwxg,142.43,Not Applicable
Department for Business Energy and Industrial Strategy,Intellectual Property Office,01/04/2022,Overseas Patent Specifications,Patent Directorate,Springer Customer Serv,H57720220407vpfpgecin,29.95,Not Applicable
Department for Business Energy and Industrial Strategy,Intellectual Property Office,04/04/2022,Office Stationery,People Places & Serv Directorate,Www.Insighthealthscreenin,H57720220406cfuptzhwu,838.80,Not Applicable
Department for Business Energy and Industrial Strategy,Intellectual Property Office,04/04/2022,T&S UK,Innovation Directorate,Www.Livebuzz,H57720220406mmaxgqsuq,120.00,Not Applicable
Department for Business Energy and Industrial Strategy,Intellectual Property Office,02/04/2022,Legal Consultancy,IT Directorate,Ipo,H57720220405civrymjic,170.00,Not Applicable
Department for Business Energy and Industrial Strategy,Intellectual Property Office,03/04/2022,Office Stationery,People Places & Serv Directorate,Amznmktplace,H57720220405fimkbytrt,112.99,Not Applicable
Department for Business Energy and Industrial Strategy,Intellectual Property Office,01/04/2022,Placement Fees,People Places & Serv Directorate,Linkedin-771,H57720220405msvjoqxgi,132.20,Not Applicable
Department for Business Energy and Industrial Strategy,Intellectual Property Office,01/04/2022,Office Stationery,People Places & Serv Directorate,Tesco Pay At Pump 3952,H57720220405phsdrglon,35.01,Not Applicable
Department for Business Energy and Industrial Strategy,Intellectual Property Office,03/04/2022,Placement Fees,People Places & Serv Directorate,Linkedin-772,H57720220405wekvticmc,107.69,Not Applicable
Department for Business Energy and Industrial Strategy,Intellectual Property Office,01/04/2022,Books,Copyright and Enforcement Directorate,Amazon.Co.Uk,H57720220405xpbmtpljr,39.99,Not Applicable
Department for Business Energy and Industrial Strategy,Intellectual Property Office,03/04/2022,Office Stationery,People Places & Serv Directorate,Amznmktplace,H57720220405xyqwlinrf,338.41,Not Applicable
Department for Business Energy and Industrial Strategy,Intellectual Property Office,31/03/2022,Office Stationery,People Places & Serv Directorate,Amznmktplace,H57720220404egxgpruln,166.54,Not Applicable
Department for Business Energy and Industrial Strategy,Intellectual Property Office,31/03/2022,Education Campaign,Innovation Directorate,Campaignmonitor,H57720220404ehwgduidx,40.39,Not Applicable
Department for Business Energy and Industrial Strategy,Intellectual Property Office,31/03/2022,Office Stationery,People Places & Serv Directorate,Amznmktplace,H57720220404gfuifywlw,77.19,Not Applicable
Department for Business Energy and Industrial Strategy,Intellectual Property Office,30/03/2022,Office Stationery,People Places & Serv Directorate,Tfl Business Bops Web,H57720220404glvcxnysw,15.00,Not Applicable
Department for Business Energy and Industrial Strategy,Intellectual Property Office,31/03/2022,Books,Copyright and Enforcement Directorate,Amazon.Co.Uk,H57720220404imkasygdj,39.99,Not Applicable
